Workbook

Sheet TITLE
A1: PBM 2-WAY VALVE FLOW CALCULATOR
A3: VERSION 2.06
A4: DATE: MARCH 22, 2016
A6: PLEASE SELECT THE TYPE OF VALVE YOU NEED:
A13: REVISION NOTES:
A14: 2.03 - ADDED DATA FOR LP GAS (PROPANE)
A15: 2.04 - ADDED SPECIFIC GRAVITY INFO TO MEDIA
A16: NAMES, ADDED DATA FOR DOZENS OF FLUIDS.
A17: 2.05 - ADDED LIQUIFIED NATURAL GAS AND LIQUID
A18: NITROGEN
A19: 2.06 - CORRECTED FOR LIQUID PRESSURE INPUTS TO
A20: BE IN PSIG AND RELABELED ACCORDINGLY.

Sheet TUBING PORT
A1: TO DETERMINE THE REQUIRED CV: | N1: Kc = | O1: 0.24 | T1: Size | U1: ID | V1: wall thickness | W1: Outlet Diameter | X1: Slot Width | Z1: Saturated Steam
H2: Select the desired valve size from the following drop-down list: | I2: 1-1/2" Tubing Port (1.37) | N2: Cf = | O2: 0.6 | Q2: =DATA!A89 -> WATER [S.G. 1.000] | R2: =DATA!F3 -> AIR [S.G. 1.0000] | T2: 1/2" Tubing Port (0.37) | U2: 0.37 | V2: 0.065 | W2: 0.37 | X2: 1/16" Slot Upstream | Z2: PSI | AA2: °F
N3: T (°C) = | O3: =5/9*(E10-32) -> -17.77777778 | Q3: =DATA!A2 -> ACETIC ACID [S.G. 1.052] | R3: =DATA!F2 -> ACETYLENE [S.G. 0.903] | T3: 3/4" Tubing Port (0.62) | U3: 0.62 | V3: 0.065 | W3: 0.62 | X3: 1/8" Slot Upstream | Z3: 0.116 | AA3: 38.84
N4: T (°K) = | O4: =273+O3 -> 255.2222222 | Q4: =DATA!A3 -> ACETONE [S.G. 0.787] | R4: =DATA!F4 -> AMMONIA [S.G. 0.589] | T4: 1" Tubing Port (0.87) | U4: 0.87 | V4: 0.065 | W4: 0.87 | X4: 3/16" Slot Upstream | Z4: 0.29 | AA4: 63.5
B5: ENTER VALUES (LIQUID) | G5: DO NOT ENTER DATA HERE | N5: e = | O5: 2.718281828 | Q5: =DATA!A4 -> ACETYLENE, LIQUID [S.G. 0.900] | R5: =DATA!F5 -> ARGON [S.G. 1.374] | T5: 1-1/2" Tubing Port (1.37) | U5: 1.37 | V5: 0.065 | W5: 1.37 | X5: 3/8" Slot Upstream | Z5: 0.725 | AA5: 91.22
B6: UPSTREAM PRESSURE (PSIG) | G6: PRESSURE DROP (PSI) | J6: =E6-E7 -> 0 | M6: Critical Pressure (Pc) | O6: =LOOKUP(D9,DATA!A2:A91,DATA!B2:B91) ->  | Q6: =DATA!A5 -> ALCOHOL [S.G. 0.802] | R6: =DATA!F6 -> CARBON DIOXIDE [S.G. 1.531] | T6: 2" Tubing Port (1.87) | U6: 1.87 | V6: 0.065 | W6: 1.87 | X6: 3/8" Slot Upstream | Z6: 1.45 | AA6: 114.44
B7: DOWNSTREAM PRESSURE (PSIG) | G7: =IF(J6=0,"",(IF(AND(J6<J10,J6>J9),"Incipient cavitation is expected",IF(J6>J10,"Cavitation will occur","")))) ->  | N7: Coeff. of Incipient Cavitation (Kc - psia) | O7: =O1 -> 0.24 | Q7: =DATA!A6 -> ALCOHOL, ETHYL (ETHANOL) [S.G. 0.787] | R7: =DATA!F7 -> CARBON MONOXIDE [S.G. 0.969] | T7: 2-1/2" Tubing Port (2.37) | U7: 2.37 | V7: 0.065 | W7: 2.37 | X7: 3/8" Slot Upstream | Z7: 2.9 | AA7: 140.18
B8: FLOW RATE (GPM) | G8: REQUIRED CV | J8: =E8*(SQRT(IF((LOOKUP(D9,DATA!A2:A91,DATA!C2:C91))=0,1,(LOOKUP(D9,DATA!A2:A91,DATA!C2:C91)))/J6)) ->  | L8: Critical Flow Factor (Cf) | O8: =O2 -> 0.6 | Q8: =DATA!A7 -> ALCOHOL, METHYL (METHANOL) [S.G. 0.791] | R8: =DATA!F8 -> ETHANE [S.G. 2.487] | T8: 3" Tubing Port (2.87) | U8: 2.87 | V8: 0.065 | W8: 2.87 | X8: 5/8" Slot Upstream | Z8: 4.06 | AA8: 153.5
B9: FLUID | G9: ∆P incipient cavitation | J9: =O7*O10 ->  | N9: Vapor Pressure (psia) of fluid at temp. | O9: =((O5^(77.345+(0.0057*O4)-(7235/O4)))/O4^8.2)*0.0001450377 -> 0.02166409221 | Q9: =DATA!A8 -> ALCOHOL, PROPYL [S.G. 0.802] | R9: =DATA!F9 -> ETHYLENE [S.G. 1.047] | T9: 4" Tubing Port (3.83) | U9: 3.83 | V9: 0.085 | W9: 3.83 | X9: 3/4" Slot Upstream | Z9: 5.075 | AA9: 162.86
B10: Temperature (°F) | G10: ∆P critical | J10: =O8^2*O10 ->  | N10: ∆Ps (psia) | O10: =O15-(0.96-0.28*(SQRT(O9/O6)))*O9 ->  | Q10: =DATA!A9 -> AMMONIA (AQUA) [S.G. 0.826] | R10: =DATA!F10 -> HELIUM [S.G. 0.144] | T10: 6" Tubing Port (5.78) | U10: 5.78 | V10: 0.11 | W10: 5.78 | X10: 1" Slot Upstream | Z10: 6.525 | AA10: 173.66
L11: valve outlet diameter (in) | O11: =VLOOKUP(I2,T1:X10,4,FALSE) -> 1.37 | Q11: =DATA!A10 -> ANILINE [S.G. 1.022] | R11: =DATA!F11 -> HYDROGEN [S.G. 0.065] | Z11: 7.975 | AA11: 182.66
L12: SLg (gas property factor) = | O12: =LOOKUP(E22,DATA!F2:F15,DATA!H2:H15) ->  | Q12: =DATA!A11 -> BENZENE [S.G. 0.876] | R12: =DATA!F12 -> METHANE [S.G. 0.550] | Z12: 9.425 | AA12: 190.4
B13: ENTER VALUES (SATURATED STEAM) | G13: DO NOT ENTER DATA HERE | L13: G specific gravity gas = | O13: =LOOKUP(E22,DATA!F2:F15,DATA!I2:I15) ->  | Q13: =DATA!A12 -> BENZOL [S.G. 0.877] | R13: =DATA!F13 -> NITROGEN [S.G. 0.969] | Z13: 10.875 | AA13: 197.24
B14: UPSTREAM PRESSURE (PSIA) | G14: PRESSURE DROP (PSI) | J14: =E14-E15 -> 0 | L14: Flowing temperature (°R) = | O14: =E25+459.67 -> 459.67 | Q14: =DATA!A13 -> BROMINE [S.G. 3.12] | R14: =DATA!F14 -> OXYGEN [S.G. 1.099] | Z14: 12.325 | AA14: 203.36
B15: DOWNSTREAM PRESSURE (PSIA) | G15: REQUIRED CV | J15: =0+IF(J14<0.5*0.36*E14,E16/(2.1*(J14*(E14+E15))^0.5),E16/(1.83*0.6*E14)) ->  | L15: Convert Upstream Pressure to PSIA = | O15: =($E$6)+14.7 -> 14.7 | Q15: =DATA!A14 -> BUTANE [S.G. 0.601] | R15: =DATA!F15 -> PROPANE [S.G. 1.531] | Z15: 13.775 | AA15: 208.76
B16: FLOW RATE (LB/HR) | G16: Temp of saturated steam (°F) | J16: =LOOKUP(E14,Z3:Z61,AA3:AA61) ->  | Q16: =DATA!A15 -> CARBON DISULFIDE [S.G. 1.265] | Z16: 14.5 | AA16: 211.28
G17: =IF(O19<0.33,"Sound generated at the outlet is negligible",IF(O19>=1,"High Mach number; Select a larger valve size","Please determine if sound level below is OK")) ->  | N17: For steam: | Q17: =DATA!A16 -> CARBON TETRACHLORIDE [S.G. 1.589] | Z17: 14.69285 | AA17: 212
G18: Predicted noise level (dBA) | J18: =10*LOG((80*(E15^2)*(O11^2)*(O25^2)*(O19^8)*(1+0.0007*J16)^6)/(O26^3)) ->  | L18: Min. valve outlet diameter (in) | O18: =0.119*(SQRT((E16*(1+0.0007*J16))/E15)) ->  | Q18: =DATA!A17 -> CARENE [0.860] | Z18: 15.95 | AA18: 216.14
M19: Mach number | O19: =(0.014*(E16*(1+0.0007*J16)))/(E15*O11^2) ->  | Q19: =DATA!A18 -> CHLORINE [S.G. 1.564] | Z19: 18.85 | AA19: 224.78
Q20: =DATA!A19 -> CHLOROFORM [S.G. 1.469] | Z20: 21.75 | AA20: 232.52
B21: ENTER VALUES (GAS) | G21: DO NOT ENTER DATA HERE | N21: For gas: | Q21: =DATA!A20 -> COCONUT OIL [S.G. 0.925] | Z21: 24.65 | AA21: 239.36
B22: GAS | G22: SPECIFIC GRAVITY | J22: =LOOKUP(D22,DATA!A95:B111) ->  | L22: Min. valve outlet diameter (in) | O22: =0.0054*(SQRT((E26*SQRT(O13*O14))/E24)) ->  | Q22: =DATA!A21 -> CRESOL [S.G. 1.027] | Z22: 27.55 | AA22: 245.48
B23: UPSTREAM PRESSURE (PSIA) | G23: PRESSURE DROP (PSI) | J23: =E23-E24 -> 0 | M23: Mach number | O23: =(0.0000294*(E26*SQRT(O13*O14)))/(E24*O11^2) ->  | Q23: =DATA!A22 -> CRUDE OIL, CALIFORNIA [S.G. 0.918] | Z23: 31.9 | AA23: 253.94
B24: DOWNSTREAM PRESSURE (PSIA) | G24: REQUIRED CV | J24: =0+IF(J23<0.5*0.36*E23,(E26/963)*(J22*(E25+460)/((J23*(E23+E24))))^0.5,(E26*(J22*(E25+460))^0.5)/(834*0.6*E23)) ->  | Q24: =DATA!A23 -> CRUDE OIL, MEXICAN [S.G. 0.976] | Z24: 37.7 | AA24: 263.66
B25: TEMPERATURE (DEGREES F) | G25: =IF(O23<0.33,"Sound generated at the outlet is negligible.",IF(O23>=1,"Select a larger valve size.","Please determine if sound level below is OK.")) ->  | L25: Tubing ID | O25: =VLOOKUP($I$2,T2:U10,2,FALSE) -> 1.37 | Q25: =DATA!A24 -> CRUDE OIL, TEXAS [S.G. 0.876] | Z25: 46.4 | AA25: 276.44
B26: FLOW RATE (SCFH) | G26: Predicted noise level (dBA) | J26: =10*LOG((0.18*(E24^2)*(O11^2)*(O25^2)*(O23^8)*O14)/(O26^3))+O12 ->  | L26: Outlet pipe wall thickness (in) | O26: =VLOOKUP($I$2,T2:V10,3,FALSE) -> 0.065 | Q26: =DATA!A25 -> CUMENE [S.G. 0.862] | Z26: 52.2 | AA26: 283.82
Q27: =DATA!A26 -> DECANE [S.G. 0.728] | Z27: 58 | AA27: 289.58
Q28: =DATA!A27 -> DODECANE [S.G. 0.757] | Z28: 63.8 | AA28: 296.78
B29: CV DATA (GPM of H2O at 1 psi ∆P) | Q29: =DATA!A28 -> ETHANE [S.G. 0.572] | Z29: 69.6 | AA29: 302.54
B30: Percent Open | C30: Degrees Open | D30: =I2 -> 1-1/2" Tubing Port (1.37) | E30: 60 V Upstream | F30: 45 V Upstream | G30: 30 V Upstream | H30: =VLOOKUP(I2,T1:X10,5,FALSE) -> 3/8" Slot Upstream | Q30: =DATA!A29 -> ETHANOL [S.G. 0.79] | Z30: 79.75 | AA30: 311.9
Q31: =DATA!A30 -> ETHER [S.G. 0.07272] | Z31: 87 | AA31: 317.84
B32: 0 | C32: =B32*0.9 -> 0 | D32: =INDEX('Cv Charts'!A2:H396,MATCH('TUBING PORT'!$I$2:$J$2&'TUBING PORT'!B32,'Cv Charts'!A2:A396&'Cv Charts'!B2:B396,0),4) -> 0 | E32: =INDEX('Cv Charts'!A2:H396,MATCH('TUBING PORT'!$I$2:$J$2&'TUBING PORT'!B32,'Cv Charts'!A2:A396&'Cv Charts'!B2:B396,0),5) -> 0 | F32: =INDEX('Cv Charts'!A2:H396,MATCH('TUBING PORT'!$I$2:$J$2&'TUBING PORT'!B32,'Cv Charts'!A2:A396&'Cv Charts'!B2:B396,0),6) -> 0 | G32: =INDEX('Cv Charts'!A2:H396,MATCH('TUBING PORT'!$I$2:$J$2&'TUBING PORT'!B32,'Cv Charts'!A2:A396&'Cv Charts'!B2:B396,0),7) -> 0 | H32: =INDEX('Cv Charts'!A2:H396,MATCH('TUBING PORT'!$I$2:$J$2&'TUBING PORT'!B32,'Cv Charts'!A2:A396&'Cv Charts'!B2:B396,0),8) -> 0 | Q32: =DATA!A31 -> ETHER [S.G. 0.716] | Z32: 94.25 | AA32: 323.6
B33: 5 | C33: 4.5 | D33: =INDEX('Cv Charts'!A3:H397,MATCH('TUBING PORT'!$I$2:$J$2&'TUBING PORT'!B33,'Cv Charts'!A3:A397&'Cv Charts'!B3:B397,0),4) -> 0 | E33: =INDEX('Cv Charts'!A3:H397,MATCH('TUBING PORT'!$I$2:$J$2&'TUBING PORT'!B33,'Cv Charts'!A3:A397&'Cv Charts'!B3:B397,0),5) -> 0 | F33: =INDEX('Cv Charts'!A3:H397,MATCH('TUBING PORT'!$I$2:$J$2&'TUBING PORT'!B33,'Cv Charts'!A3:A397&'Cv Charts'!B3:B397,0),6) -> 0 | G33: =INDEX('Cv Charts'!A3:H397,MATCH('TUBING PORT'!$I$2:$J$2&'TUBING PORT'!B33,'Cv Charts'!A3:A397&'Cv Charts'!B3:B397,0),7) -> 0 | H33: =INDEX('Cv Charts'!A3:H397,MATCH('TUBING PORT'!$I$2:$J$2&'TUBING PORT'!B33,'Cv Charts'!A3:A397&'Cv Charts'!B3:B397,0),8) -> 0 | Q33: =DATA!A32 -> ETHYLAMINE [S.G. 0.683] | Z33: 101.5 | AA33: 329
B34: 10 | C34: 9 | D34: =INDEX('Cv Charts'!A4:H398,MATCH('TUBING PORT'!$I$2:$J$2&'TUBING PORT'!B34,'Cv Charts'!A4:A398&'Cv Charts'!B4:B398,0),4) -> 0 | E34: =INDEX('Cv Charts'!A4:H398,MATCH('TUBING PORT'!$I$2:$J$2&'TUBING PORT'!B34,'Cv Charts'!A4:A398&'Cv Charts'!B4:B398,0),5) -> 0 | F34: =INDEX('Cv Charts'!A4:H398,MATCH('TUBING PORT'!$I$2:$J$2&'TUBING PORT'!B34,'Cv Charts'!A4:A398&'Cv Charts'!B4:B398,0),6) -> 0 | G34: =INDEX('Cv Charts'!A4:H398,MATCH('TUBING PORT'!$I$2:$J$2&'TUBING PORT'!B34,'Cv Charts'!A4:A398&'Cv Charts'!B4:B398,0),7) -> 0 | H34: =INDEX('Cv Charts'!A4:H398,MATCH('TUBING PORT'!$I$2:$J$2&'TUBING PORT'!B34,'Cv Charts'!A4:A398&'Cv Charts'!B4:B398,0),8) -> 0 | Q34: =DATA!A33 -> ETHYLENE GLYCOL [S.G. 1.100] | Z34: 108.75 | AA34: 334.04
B35: 15 | C35: 13.5 | D35: =INDEX('Cv Charts'!A5:H399,MATCH('TUBING PORT'!$I$2:$J$2&'TUBING PORT'!B35,'Cv Charts'!A5:A399&'Cv Charts'!B5:B399,0),4) -> 0.3547341 | E35: =INDEX('Cv Charts'!A5:H399,MATCH('TUBING PORT'!$I$2:$J$2&'TUBING PORT'!B35,'Cv Charts'!A5:A399&'Cv Charts'!B5:B399,0),5) -> 0.1069833 | F35: =INDEX('Cv Charts'!A5:H399,MATCH('TUBING PORT'!$I$2:$J$2&'TUBING PORT'!B35,'Cv Charts'!A5:A399&'Cv Charts'!B5:B399,0),6) -> 0.1632903 | G35: =INDEX('Cv Charts'!A5:H399,MATCH('TUBING PORT'!$I$2:$J$2&'TUBING PORT'!B35,'Cv Charts'!A5:A399&'Cv Charts'!B5:B399,0),7) -> 0.1614134 | H35: =INDEX('Cv Charts'!A5:H399,MATCH('TUBING PORT'!$I$2:$J$2&'TUBING PORT'!B35,'Cv Charts'!A5:A399&'Cv Charts'!B5:B399,0),8) -> 0.471965 | Q35: =DATA!A34 -> FLUORINE (FREON) REFRIGERANT R-11 [S.G. 1.480] | Z35: 116 | AA35: 338.72
B36: 20 | C36: 18 | D36: =INDEX('Cv Charts'!A6:H400,MATCH('TUBING PORT'!$I$2:$J$2&'TUBING PORT'!B36,'Cv Charts'!A6:A400&'Cv Charts'!B6:B400,0),4) -> 1.53436575 | E36: =INDEX('Cv Charts'!A6:H400,MATCH('TUBING PORT'!$I$2:$J$2&'TUBING PORT'!B36,'Cv Charts'!A6:A400&'Cv Charts'!B6:B400,0),5) -> 0.46453275 | F36: =INDEX('Cv Charts'!A6:H400,MATCH('TUBING PORT'!$I$2:$J$2&'TUBING PORT'!B36,'Cv Charts'!A6:A400&'Cv Charts'!B6:B400,0),6) -> 0.43637925 | G36: =INDEX('Cv Charts'!A6:H400,MATCH('TUBING PORT'!$I$2:$J$2&'TUBING PORT'!B36,'Cv Charts'!A6:A400&'Cv Charts'!B6:B400,0),7) -> 0.55837775 | H36: =INDEX('Cv Charts'!A6:H400,MATCH('TUBING PORT'!$I$2:$J$2&'TUBING PORT'!B36,'Cv Charts'!A6:A400&'Cv Charts'!B6:B400,0),8) -> 1.2604 | Q36: =DATA!A35 -> FLUORINE [S.G. 1.108] | Z36: 123.25 | AA36: 343.22
B37: 25 | C37: 22.5 | D37: =INDEX('Cv Charts'!A7:H401,MATCH('TUBING PORT'!$I$2:$J$2&'TUBING PORT'!B37,'Cv Charts'!A7:A401&'Cv Charts'!B7:B401,0),4) -> 2.69053615 | E37: =INDEX('Cv Charts'!A7:H401,MATCH('TUBING PORT'!$I$2:$J$2&'TUBING PORT'!B37,'Cv Charts'!A7:A401&'Cv Charts'!B7:B401,0),5) -> 0.807067 | F37: =INDEX('Cv Charts'!A7:H401,MATCH('TUBING PORT'!$I$2:$J$2&'TUBING PORT'!B37,'Cv Charts'!A7:A401&'Cv Charts'!B7:B401,0),6) -> 0.619377 | G37: =INDEX('Cv Charts'!A7:H401,MATCH('TUBING PORT'!$I$2:$J$2&'TUBING PORT'!B37,'Cv Charts'!A7:A401&'Cv Charts'!B7:B401,0),7) -> 1.11206325 | H37: =INDEX('Cv Charts'!A7:H401,MATCH('TUBING PORT'!$I$2:$J$2&'TUBING PORT'!B37,'Cv Charts'!A7:A401&'Cv Charts'!B7:B401,0),8) -> 2.1509 | Q37: =DATA!A36 -> FLUORINE REFRIGERANT R-12 [S.G. 1.315] | Z37: 130.5 | AA37: 347.72
B38: 30 | C38: 27 | D38: =INDEX('Cv Charts'!A8:H402,MATCH('TUBING PORT'!$I$2:$J$2&'TUBING PORT'!B38,'Cv Charts'!A8:A402&'Cv Charts'!B8:B402,0),4) -> 2.97957875 | E38: =INDEX('Cv Charts'!A8:H402,MATCH('TUBING PORT'!$I$2:$J$2&'TUBING PORT'!B38,'Cv Charts'!A8:A402&'Cv Charts'!B8:B402,0),5) -> 1.3232145 | F38: =INDEX('Cv Charts'!A8:H402,MATCH('TUBING PORT'!$I$2:$J$2&'TUBING PORT'!B38,'Cv Charts'!A8:A402&'Cv Charts'!B8:B402,0),6) -> 0.975988 | G38: =INDEX('Cv Charts'!A8:H402,MATCH('TUBING PORT'!$I$2:$J$2&'TUBING PORT'!B38,'Cv Charts'!A8:A402&'Cv Charts'!B8:B402,0),7) -> 1.58128825 | H38: =INDEX('Cv Charts'!A8:H402,MATCH('TUBING PORT'!$I$2:$J$2&'TUBING PORT'!B38,'Cv Charts'!A8:A402&'Cv Charts'!B8:B402,0),8) -> 3.0277 | Q38: =DATA!A37 -> FLUORINE REFRIGERANT R-22 [S.G. 1.197] | Z38: 137.75 | AA38: 351.86
B39: 35 | C39: 31.5 | D39: =INDEX('Cv Charts'!A9:H403,MATCH('TUBING PORT'!$I$2:$J$2&'TUBING PORT'!B39,'Cv Charts'!A9:A403&'Cv Charts'!B9:B403,0),4) -> 3.96495125 | E39: =INDEX('Cv Charts'!A9:H403,MATCH('TUBING PORT'!$I$2:$J$2&'TUBING PORT'!B39,'Cv Charts'!A9:A403&'Cv Charts'!B9:B403,0),5) -> 1.9801295 | F39: =INDEX('Cv Charts'!A9:H403,MATCH('TUBING PORT'!$I$2:$J$2&'TUBING PORT'!B39,'Cv Charts'!A9:A403&'Cv Charts'!B9:B403,0),6) -> 1.7173635 | G39: =INDEX('Cv Charts'!A9:H403,MATCH('TUBING PORT'!$I$2:$J$2&'TUBING PORT'!B39,'Cv Charts'!A9:A403&'Cv Charts'!B9:B403,0),7) -> 2.0176675 | H39: =INDEX('Cv Charts'!A9:H403,MATCH('TUBING PORT'!$I$2:$J$2&'TUBING PORT'!B39,'Cv Charts'!A9:A403&'Cv Charts'!B9:B403,0),8) -> 4.06205 | Q39: =DATA!A38 -> FORMALDEHYDE [S.G. 0.815] | Z39: 145 | AA39: 355.82
B40: 40 | C40: 36 | D40: =INDEX('Cv Charts'!A10:H404,MATCH('TUBING PORT'!$I$2:$J$2&'TUBING PORT'!B40,'Cv Charts'!A10:A404&'Cv Charts'!B10:B404,0),4) -> 6.21723125 | E40: =INDEX('Cv Charts'!A10:H404,MATCH('TUBING PORT'!$I$2:$J$2&'TUBING PORT'!B40,'Cv Charts'!A10:A404&'Cv Charts'!B10:B404,0),5) -> 2.477508 | F40: =INDEX('Cv Charts'!A10:H404,MATCH('TUBING PORT'!$I$2:$J$2&'TUBING PORT'!B40,'Cv Charts'!A10:A404&'Cv Charts'!B10:B404,0),6) -> 2.50096925 | G40: =INDEX('Cv Charts'!A10:H404,MATCH('TUBING PORT'!$I$2:$J$2&'TUBING PORT'!B40,'Cv Charts'!A10:A404&'Cv Charts'!B10:B404,0),7) -> 2.62766 | H40: =INDEX('Cv Charts'!A10:H404,MATCH('TUBING PORT'!$I$2:$J$2&'TUBING PORT'!B40,'Cv Charts'!A10:A404&'Cv Charts'!B10:B404,0),8) -> 5.3978 | Q40: =DATA!A39 -> FURFORAL [S.G. 1.159] | Z40: 152.25 | AA40: 359.6
B41: 45 | C41: 40.5 | D41: =INDEX('Cv Charts'!A11:H405,MATCH('TUBING PORT'!$I$2:$J$2&'TUBING PORT'!B41,'Cv Charts'!A11:A405&'Cv Charts'!B11:B405,0),4) -> 9.140503 | E41: =INDEX('Cv Charts'!A11:H405,MATCH('TUBING PORT'!$I$2:$J$2&'TUBING PORT'!B41,'Cv Charts'!A11:A405&'Cv Charts'!B11:B405,0),5) -> 3.91802875 | F41: =INDEX('Cv Charts'!A11:H405,MATCH('TUBING PORT'!$I$2:$J$2&'TUBING PORT'!B41,'Cv Charts'!A11:A405&'Cv Charts'!B11:B405,0),6) -> 3.31742075 | G41: =INDEX('Cv Charts'!A11:H405,MATCH('TUBING PORT'!$I$2:$J$2&'TUBING PORT'!B41,'Cv Charts'!A11:A405&'Cv Charts'!B11:B405,0),7) -> 3.247037 | H41: =INDEX('Cv Charts'!A11:H405,MATCH('TUBING PORT'!$I$2:$J$2&'TUBING PORT'!B41,'Cv Charts'!A11:A405&'Cv Charts'!B11:B405,0),8) -> 6.80205 | Q41: =DATA!A40 -> GLYCERIN [S.G. 1.263] | Z41: 166.75 | AA41: 366.8
B42: 50 | C42: 45 | D42: =INDEX('Cv Charts'!A12:H406,MATCH('TUBING PORT'!$I$2:$J$2&'TUBING PORT'!B42,'Cv Charts'!A12:A406&'Cv Charts'!B12:B406,0),4) -> 11.0643255 | E42: =INDEX('Cv Charts'!A12:H406,MATCH('TUBING PORT'!$I$2:$J$2&'TUBING PORT'!B42,'Cv Charts'!A12:A406&'Cv Charts'!B12:B406,0),5) -> 5.649469 | F42: =INDEX('Cv Charts'!A12:H406,MATCH('TUBING PORT'!$I$2:$J$2&'TUBING PORT'!B42,'Cv Charts'!A12:A406&'Cv Charts'!B12:B406,0),6) -> 4.44356075 | G42: =INDEX('Cv Charts'!A12:H406,MATCH('TUBING PORT'!$I$2:$J$2&'TUBING PORT'!B42,'Cv Charts'!A12:A406&'Cv Charts'!B12:B406,0),7) -> 4.6453275 | H42: =INDEX('Cv Charts'!A12:H406,MATCH('TUBING PORT'!$I$2:$J$2&'TUBING PORT'!B42,'Cv Charts'!A12:A406&'Cv Charts'!B12:B406,0),8) -> 7.9049 | Q42: =DATA!A41 -> GLYCEROL [S.G. 1.129] | Z42: 181.25 | AA42: 373.64
B43: 55 | C43: 49.5 | D43: =INDEX('Cv Charts'!A13:H407,MATCH('TUBING PORT'!$I$2:$J$2&'TUBING PORT'!B43,'Cv Charts'!A13:A407&'Cv Charts'!B13:B407,0),4) -> 13.607525 | E43: =INDEX('Cv Charts'!A13:H407,MATCH('TUBING PORT'!$I$2:$J$2&'TUBING PORT'!B43,'Cv Charts'!A13:A407&'Cv Charts'!B13:B407,0),5) -> 6.3345375 | F43: =INDEX('Cv Charts'!A13:H407,MATCH('TUBING PORT'!$I$2:$J$2&'TUBING PORT'!B43,'Cv Charts'!A13:A407&'Cv Charts'!B13:B407,0),6) -> 6.1468475 | G43: =INDEX('Cv Charts'!A13:H407,MATCH('TUBING PORT'!$I$2:$J$2&'TUBING PORT'!B43,'Cv Charts'!A13:A407&'Cv Charts'!B13:B407,0),7) -> 5.1145525 | H43: =INDEX('Cv Charts'!A13:H407,MATCH('TUBING PORT'!$I$2:$J$2&'TUBING PORT'!B43,'Cv Charts'!A13:A407&'Cv Charts'!B13:B407,0),8) -> 9.2475 | Q43: =DATA!A42 -> GLYCOL (ETHYLENE) [S.G. 1.100] | Z43: 188.5 | AA43: 376.88
B44: 60 | C44: 54 | D44: =INDEX('Cv Charts'!A14:H408,MATCH('TUBING PORT'!$I$2:$J$2&'TUBING PORT'!B44,'Cv Charts'!A14:A408&'Cv Charts'!B14:B408,0),4) -> 17.11263575 | E44: =INDEX('Cv Charts'!A14:H408,MATCH('TUBING PORT'!$I$2:$J$2&'TUBING PORT'!B44,'Cv Charts'!A14:A408&'Cv Charts'!B14:B408,0),5) -> 7.82198075 | F44: =INDEX('Cv Charts'!A14:H408,MATCH('TUBING PORT'!$I$2:$J$2&'TUBING PORT'!B44,'Cv Charts'!A14:A408&'Cv Charts'!B14:B408,0),6) -> 7.69529 | G44: =INDEX('Cv Charts'!A14:H408,MATCH('TUBING PORT'!$I$2:$J$2&'TUBING PORT'!B44,'Cv Charts'!A14:A408&'Cv Charts'!B14:B408,0),7) -> 6.3345375 | H44: =INDEX('Cv Charts'!A14:H408,MATCH('TUBING PORT'!$I$2:$J$2&'TUBING PORT'!B44,'Cv Charts'!A14:A408&'Cv Charts'!B14:B408,0),8) -> 9.59 | Q44: =DATA!A43 -> GLYCOL (PROPYLENE) [S.G. 1.306] | Z44: 217.5 | AA44: 388.94
B45: 65 | C45: 58.5 | D45: =INDEX('Cv Charts'!A15:H409,MATCH('TUBING PORT'!$I$2:$J$2&'TUBING PORT'!B45,'Cv Charts'!A15:A409&'Cv Charts'!B15:B409,0),4) -> 22.391417 | E45: =INDEX('Cv Charts'!A15:H409,MATCH('TUBING PORT'!$I$2:$J$2&'TUBING PORT'!B45,'Cv Charts'!A15:A409&'Cv Charts'!B15:B409,0),5) -> 9.666035 | F45: =INDEX('Cv Charts'!A15:H409,MATCH('TUBING PORT'!$I$2:$J$2&'TUBING PORT'!B45,'Cv Charts'!A15:A409&'Cv Charts'!B15:B409,0),6) -> 9.4314225 | G45: =INDEX('Cv Charts'!A15:H409,MATCH('TUBING PORT'!$I$2:$J$2&'TUBING PORT'!B45,'Cv Charts'!A15:A409&'Cv Charts'!B15:B409,0),7) -> 7.7422125 | H45: =INDEX('Cv Charts'!A15:H409,MATCH('TUBING PORT'!$I$2:$J$2&'TUBING PORT'!B45,'Cv Charts'!A15:A409&'Cv Charts'!B15:B409,0),8) -> 10.82985 | Q45: =DATA!A44 -> HEPTANE [S.G. 0.681] | Z45: 232 | AA45: 394.52
B46: 70 | C46: 63 | D46: =INDEX('Cv Charts'!A16:H410,MATCH('TUBING PORT'!$I$2:$J$2&'TUBING PORT'!B46,'Cv Charts'!A16:A410&'Cv Charts'!B16:B410,0),4) -> 28.8573375 | E46: =INDEX('Cv Charts'!A16:H410,MATCH('TUBING PORT'!$I$2:$J$2&'TUBING PORT'!B46,'Cv Charts'!A16:A410&'Cv Charts'!B16:B410,0),5) -> 12.5283075 | F46: =INDEX('Cv Charts'!A16:H410,MATCH('TUBING PORT'!$I$2:$J$2&'TUBING PORT'!B46,'Cv Charts'!A16:A410&'Cv Charts'!B16:B410,0),6) -> 11.44909 | G46: =INDEX('Cv Charts'!A16:H410,MATCH('TUBING PORT'!$I$2:$J$2&'TUBING PORT'!B46,'Cv Charts'!A16:A410&'Cv Charts'!B16:B410,0),7) -> 9.8068025 | H46: =INDEX('Cv Charts'!A16:H410,MATCH('TUBING PORT'!$I$2:$J$2&'TUBING PORT'!B46,'Cv Charts'!A16:A410&'Cv Charts'!B16:B410,0),8) -> 11.74775 | Q46: =DATA!A45 -> HEXANE [S.G. 0.657] | Z46: 261 | AA46: 404.78
B47: 75 | C47: 67.5 | D47: =INDEX('Cv Charts'!A17:H411,MATCH('TUBING PORT'!$I$2:$J$2&'TUBING PORT'!B47,'Cv Charts'!A17:A411&'Cv Charts'!B17:B411,0),4) -> 38.58437175 | E47: =INDEX('Cv Charts'!A17:H411,MATCH('TUBING PORT'!$I$2:$J$2&'TUBING PORT'!B47,'Cv Charts'!A17:A411&'Cv Charts'!B17:B411,0),5) -> 17.5020925 | F47: =INDEX('Cv Charts'!A17:H411,MATCH('TUBING PORT'!$I$2:$J$2&'TUBING PORT'!B47,'Cv Charts'!A17:A411&'Cv Charts'!B17:B411,0),6) -> 13.982905 | G47: =INDEX('Cv Charts'!A17:H411,MATCH('TUBING PORT'!$I$2:$J$2&'TUBING PORT'!B47,'Cv Charts'!A17:A411&'Cv Charts'!B17:B411,0),7) -> 12.01216 | H47: =INDEX('Cv Charts'!A17:H411,MATCH('TUBING PORT'!$I$2:$J$2&'TUBING PORT'!B47,'Cv Charts'!A17:A411&'Cv Charts'!B17:B411,0),8) -> 12.7684 | Q47: =DATA!A46 -> HEXANOL [S.G. 0.813] | Z47: 290 | AA47: 414.32
B48: 80 | C48: 72 | D48: =INDEX('Cv Charts'!A18:H412,MATCH('TUBING PORT'!$I$2:$J$2&'TUBING PORT'!B48,'Cv Charts'!A18:A412&'Cv Charts'!B18:B412,0),4) -> 50.89683575 | E48: =INDEX('Cv Charts'!A18:H412,MATCH('TUBING PORT'!$I$2:$J$2&'TUBING PORT'!B48,'Cv Charts'!A18:A412&'Cv Charts'!B18:B412,0),5) -> 23.555095 | F48: =INDEX('Cv Charts'!A18:H412,MATCH('TUBING PORT'!$I$2:$J$2&'TUBING PORT'!B48,'Cv Charts'!A18:A412&'Cv Charts'!B18:B412,0),6) -> 17.2205575 | G48: =INDEX('Cv Charts'!A18:H412,MATCH('TUBING PORT'!$I$2:$J$2&'TUBING PORT'!B48,'Cv Charts'!A18:A412&'Cv Charts'!B18:B412,0),7) -> 14.3113625 | H48: =INDEX('Cv Charts'!A18:H412,MATCH('TUBING PORT'!$I$2:$J$2&'TUBING PORT'!B48,'Cv Charts'!A18:A412&'Cv Charts'!B18:B412,0),8) -> 14.385 | Q48: =DATA!A47 -> HEXENE [S.G. 0.673] | Z48: 304.5 | AA48: 418.82
B49: 85 | C49: 76.5 | D49: =INDEX('Cv Charts'!A19:H413,MATCH('TUBING PORT'!$I$2:$J$2&'TUBING PORT'!B49,'Cv Charts'!A19:A413&'Cv Charts'!B19:B413,0),4) -> 66.02464975 | E49: =INDEX('Cv Charts'!A19:H413,MATCH('TUBING PORT'!$I$2:$J$2&'TUBING PORT'!B49,'Cv Charts'!A19:A413&'Cv Charts'!B19:B413,0),5) -> 28.84326075 | F49: =INDEX('Cv Charts'!A19:H413,MATCH('TUBING PORT'!$I$2:$J$2&'TUBING PORT'!B49,'Cv Charts'!A19:A413&'Cv Charts'!B19:B413,0),6) -> 21.302815 | G49: =INDEX('Cv Charts'!A19:H413,MATCH('TUBING PORT'!$I$2:$J$2&'TUBING PORT'!B49,'Cv Charts'!A19:A413&'Cv Charts'!B19:B413,0),7) -> 17.549015 | H49: =INDEX('Cv Charts'!A19:H413,MATCH('TUBING PORT'!$I$2:$J$2&'TUBING PORT'!B49,'Cv Charts'!A19:A413&'Cv Charts'!B19:B413,0),8) -> 16.44 | Q49: =DATA!A48 -> HYDRAZINE [S.G. 0.797] | Z49: 333.5 | AA49: 427.28
B50: 90 | C50: 81 | D50: =INDEX('Cv Charts'!A20:H414,MATCH('TUBING PORT'!$I$2:$J$2&'TUBING PORT'!B50,'Cv Charts'!A20:A414&'Cv Charts'!B20:B414,0),4) -> 85.868175 | E50: =INDEX('Cv Charts'!A20:H414,MATCH('TUBING PORT'!$I$2:$J$2&'TUBING PORT'!B50,'Cv Charts'!A20:A414&'Cv Charts'!B20:B414,0),5) -> 36.59955 | F50: =INDEX('Cv Charts'!A20:H414,MATCH('TUBING PORT'!$I$2:$J$2&'TUBING PORT'!B50,'Cv Charts'!A20:A414&'Cv Charts'!B20:B414,0),6) -> 26.08891 | G50: =INDEX('Cv Charts'!A20:H414,MATCH('TUBING PORT'!$I$2:$J$2&'TUBING PORT'!B50,'Cv Charts'!A20:A414&'Cv Charts'!B20:B414,0),7) -> 21.8189625 | H50: =INDEX('Cv Charts'!A20:H414,MATCH('TUBING PORT'!$I$2:$J$2&'TUBING PORT'!B50,'Cv Charts'!A20:A414&'Cv Charts'!B20:B414,0),8) -> 18.0155 | Q50: =DATA!A49 -> KEROSENE [S.G. 0.820] | Z50: 348 | AA50: 431.24
B51: 95 | C51: 85.5 | D51: =INDEX('Cv Charts'!A21:H415,MATCH('TUBING PORT'!$I$2:$J$2&'TUBING PORT'!B51,'Cv Charts'!A21:A415&'Cv Charts'!B21:B415,0),4) -> 114.4909 | E51: =INDEX('Cv Charts'!A21:H415,MATCH('TUBING PORT'!$I$2:$J$2&'TUBING PORT'!B51,'Cv Charts'!A21:A415&'Cv Charts'!B21:B415,0),5) -> 48.330175 | F51: =INDEX('Cv Charts'!A21:H415,MATCH('TUBING PORT'!$I$2:$J$2&'TUBING PORT'!B51,'Cv Charts'!A21:A415&'Cv Charts'!B21:B415,0),6) -> 30.96885 | G51: =INDEX('Cv Charts'!A21:H415,MATCH('TUBING PORT'!$I$2:$J$2&'TUBING PORT'!B51,'Cv Charts'!A21:A415&'Cv Charts'!B21:B415,0),7) -> 25.807375 | H51: =INDEX('Cv Charts'!A21:H415,MATCH('TUBING PORT'!$I$2:$J$2&'TUBING PORT'!B51,'Cv Charts'!A21:A415&'Cv Charts'!B21:B415,0),8) -> 18.66625 | Q51: =DATA!A50 -> KRYPTON [S.G. 2.818]
B52: 100 | C52: 90 | D52: =INDEX('Cv Charts'!A22:H416,MATCH('TUBING PORT'!$I$2:$J$2&'TUBING PORT'!B52,'Cv Charts'!A22:A416&'Cv Charts'!B22:B416,0),4) -> 175.959375 | E52: =INDEX('Cv Charts'!A22:H416,MATCH('TUBING PORT'!$I$2:$J$2&'TUBING PORT'!B52,'Cv Charts'!A22:A416&'Cv Charts'!B22:B416,0),5) -> 60.530025 | F52: =INDEX('Cv Charts'!A22:H416,MATCH('TUBING PORT'!$I$2:$J$2&'TUBING PORT'!B52,'Cv Charts'!A22:A416&'Cv Charts'!B22:B416,0),6) -> 42.23025 | G52: =INDEX('Cv Charts'!A22:H416,MATCH('TUBING PORT'!$I$2:$J$2&'TUBING PORT'!B52,'Cv Charts'!A22:A416&'Cv Charts'!B22:B416,0),7) -> 30.96885 | H52: =INDEX('Cv Charts'!A22:H416,MATCH('TUBING PORT'!$I$2:$J$2&'TUBING PORT'!B52,'Cv Charts'!A22:A416&'Cv Charts'!B22:B416,0),8) -> 19.4129 | Q52: LIQUID NITROGEN [S.G. 0.807]
Q53: LIQUIFIED NATURAL GAS (LNG) [S.G. 0.43] | Z53: 377 | AA53: 438.8
Q54: =DATA!A53 -> LP GAS (PROPANE) [S.G. 1.500] | Z54: 391.5 | AA54: 442.58
Q55: =DATA!A54 -> MERCURY [S.G. 13.633] | Z55: 420.5 | AA55: 449.6
Q56: =DATA!A55 -> METHANE [S.G. 0.466] | Z56: 435 | AA56: 452.84
Q57: =DATA!A56 -> METHANOL [S.G. 0.79] | Z57: 464 | AA57: 459.32
Q58: =DATA!A57 -> MOLASSES B [S.G. 1.445] | Z58: 493 | AA58: 465.62
Q59: =DATA!A58 -> NAPTHALENE [S.G. 0.963] | Z59: 522 | AA59: 471.56
Q60: =DATA!A59 -> NEON [S.G. 0.697] | Z60: 551 | AA60: 477.14
Q61: =DATA!A60 -> NONANOL [S.G. 0.823] | Z61: 580 | AA61: 482.54
Q62: =DATA!A61 -> OCTANE [S.G. 0.701]
Q63: =DATA!A62 -> OLIVE OIL [S.G. 0.911]
Q64: =DATA!A63 -> OXYGEN [S.G. 1.140]
Q65: =DATA!A64 -> PALM OIL [S.G. 0.924]
Q66: =DATA!A65 -> PALMITIC ACID [S.G. 0.853]
Q67: =DATA!A66 -> PENTANE [S.G. 0.755]
Q68: =DATA!A67 -> PHENOL [S.G. 1.075]
Q69: =DATA!A68 -> PHOSGENE [S.G. 1.381]
Q70: =DATA!A69 -> PINENE [S.G. 0.858]
Q71: =DATA!A70 -> PROPANE [S.G. 0.540]
Q72: =DATA!A71 -> PROPYLENE [S.G. 0.516]
Q73: =DATA!A72 -> PROPYLENE GLYCOL [S.G. 1.036]
Q74: =DATA!A73 -> PYRIDINE [S.G. 0.968]
Q75: =DATA!A74 -> REFRIGERANT 12 [S.G. 1.315]
Q76: =DATA!A75 -> REFRIGERANT 22 [S.G. 1.197]
Q77: =DATA!A76 -> SAE 10 OIL [S.G. 0.908]
Q78: =DATA!A77 -> SAE 30 OIL [S.G. 0.908]
Q79: =DATA!A78 -> SAE 50 OIL [S.G. 0.908]
Q80: =DATA!A79 -> SAE 70 OIL [S.G. 0.908]
Q81: =DATA!A80 -> SEA WATER [S.G. 1.028]
Q82: =DATA!A81 -> SILANE [S.G. 0.719]
Q83: =DATA!A82 -> STEARIC ACID [S.G. 0.941]
Q84: =DATA!A83 -> STYRENE [S.G. 0.906]
Q85: =DATA!A84 -> SULFURIC ACID [S.G. 1.84]
Q86: =DATA!A85 -> TERPINENE [S.G. 0.850]
Q87: =DATA!A86 -> TOLUENE [S.G. 0.865]
Q88: =DATA!A87 -> TURPENTINE [S.G. 0.871]
Q89: =DATA!A88 -> VEGETABLE OIL [S.G. 0.918]
Q90: =DATA!A90 -> WATER, PURE [S.G. 1.000]
Q91: =DATA!A91 -> WATER, SEA [S.G. 1.025]

Sheet FULL PORT
A1: TO DETERMINE THE REQUIRED CV: | N1: Kc = | O1: 0.24 | T1: Size | U1: Outlet Diameter | V1: Slot Width | X1: Size | Y1: Schedule | Z1: OD | AA1: Thickness | AB1: ID
A2: Select the desired valve size from the following drop-down list: | N2: Cf = | O2: 0.6 | Q2: =DATA!A89 -> WATER [S.G. 1.000] | R2: =DATA!F3 -> AIR [S.G. 1.0000] | T2: 1/2" Full Port | U2: 0.5 | V2: 1/8" Slot Upstream | X2: 1/2" Full Port | Y2: 5 | Z2: 0.84 | AA2: 0.065 | AB2: =Z2-2*AA2 -> 0.71
A3: Select the pipe schedule from the following drop-down list: | N3: T (°C) = | O3: =5/9*(E10-32) -> -17.77777778 | Q3: =DATA!A2 -> ACETIC ACID [S.G. 1.052] | R3: =DATA!F2 -> ACETYLENE [S.G. 0.903] | T3: 3/4" Full Port | U3: 0.75 | V3: 1/8" Slot Upstream | X3: =$T$2 -> 1/2" Full Port | Y3: 10 | Z3: 0.84 | AA3: 0.083 | AB3: =Z3-2*AA3 -> 0.674
N4: T (°K) = | O4: =273+O3 -> 255.2222222 | Q4: =DATA!A3 -> ACETONE [S.G. 0.787] | R4: =DATA!F4 -> AMMONIA [S.G. 0.589] | T4: 1" Full Port | U4: 1 | V4: 3/16" Slot Upstream | X4: =$T$2 -> 1/2" Full Port | Y4: 40 | Z4: 0.84 | AA4: 0.109 | AB4: 0.622
B5: ENTER VALUES (LIQUID) | G5: DO NOT ENTER DATA HERE | N5: e = | O5: 2.718281828 | Q5: =DATA!A4 -> ACETYLENE, LIQUID [S.G. 0.900] | R5: =DATA!F5 -> ARGON [S.G. 1.374] | T5: 1-1/2" Full Port | U5: 1.5 | V5: 3/8" Slot Upstream | X5: =$T$2 -> 1/2" Full Port | Y5: 80 | Z5: 0.84 | AA5: 0.147 | AB5: 0.546
B6: UPSTREAM PRESSURE (PSIG) | G6: PRESSURE DROP (PSI) | J6: =E6-E7 -> 0 | M6: Critical Pressure (Pc) | O6: =LOOKUP(D9,DATA!A2:A91,DATA!B2:B91) ->  | Q6: =DATA!A5 -> ALCOHOL [S.G. 0.802] | R6: =DATA!F6 -> CARBON DIOXIDE [S.G. 1.531] | T6: 2" Full Port | U6: 2 | V6: 3/8" Slot Upstream | X6: 3/4" Full Port | Y6: =$Y$2 -> 5 | Z6: 1.05 | AA6: 0.065 | AB6: 0.92
B7: DOWNSTREAM PRESSURE (PSIG) | G7: =IF(J6=0,"",(IF(AND(J6<J10,J6>J9),"Incipient cavitation is expected",IF(J6>J10,"Cavitation will occur","")))) ->  | K7: Coeff. of Incipient Cavitation (Kc - psia) | O7: =O1 -> 0.24 | Q7: =DATA!A6 -> ALCOHOL, ETHYL (ETHANOL) [S.G. 0.787] | R7: =DATA!F7 -> CARBON MONOXIDE [S.G. 0.969] | T7: 2-1/2" Full Port | U7: 2.5 | V7: 3/8" Slot Upstream | X7: =$T$3 -> 3/4" Full Port | Y7: =$Y$3 -> 10 | Z7: 1.05 | AA7: 0.083 | AB7: 0.884
B8: FLOW RATE (GPM) | G8: REQUIRED CV | J8: =E8*(SQRT(IF((LOOKUP(D9,DATA!A2:A91,DATA!C2:C91))=0,1,(LOOKUP(D9,DATA!A2:A91,DATA!C2:C91)))/J6)) ->  | L8: Critical Flow Factor (Cf) | O8: =O2 -> 0.6 | Q8: =DATA!A7 -> ALCOHOL, METHYL (METHANOL) [S.G. 0.791] | R8: =DATA!F8 -> ETHANE [S.G. 2.487] | T8: 3" Full Port | U8: 3 | V8: 5/8" Slot Upstream | X8: =$T$3 -> 3/4" Full Port | Y8: =$Y$4 -> 40 | Z8: 1.05 | AA8: 0.113 | AB8: 0.824
B9: FLUID | G9: ∆P incipient cavitation | J9: =O7*O10 ->  | K9: Vapor Pressure (psia) of fluid at temp. | O9: =((O5^(77.345+(0.0057*O4)-(7235/O4)))/O4^8.2)*0.0001450377 -> 0.02166409221 | Q9: =DATA!A8 -> ALCOHOL, PROPYL [S.G. 0.802] | R9: =DATA!F9 -> ETHYLENE [S.G. 1.047] | T9: 4" Full Port | U9: 4 | V9: 3/4" Slot Upstream | X9: =$T$3 -> 3/4" Full Port | Y9: =$Y$5 -> 80 | Z9: 1.05 | AA9: 0.154 | AB9: 0.742
B10: Temperature (°F) | G10: ∆P critical | J10: =O8^2*O10 ->  | N10: ∆Ps (psia) | O10: =O15-(0.96-0.28*(SQRT(O9/O6)))*O9 ->  | Q10: =DATA!A9 -> AMMONIA (AQUA) [S.G. 0.826] | R10: =DATA!F10 -> HELIUM [S.G. 0.144] | T10: 6" Full Port | U10: 6 | V10: 1" Slot Upstream | X10: 1" Full Port | Y10: =$Y$2 -> 5 | Z10: 1.315 | AA10: 0.065 | AB10: 1.185
L11: valve outlet diameter (in) | O11: =VLOOKUP(I2,T1:V10,2,FALSE) ->  | Q11: =DATA!A10 -> ANILINE [S.G. 1.022] | R11: =DATA!F11 -> HYDROGEN [S.G. 0.065] | T11: 8" Full Port | U11: 8 | X11: =$T$4 -> 1" Full Port | Y11: =$Y$3 -> 10 | Z11: 1.315 | AA11: 0.109 | AB11: 1.097
L12: SLg (gas property factor) = | O12: =LOOKUP(E22,DATA!F2:F15,DATA!H2:H15) ->  | Q12: =DATA!A11 -> BENZENE [S.G. 0.876] | R12: =DATA!F12 -> METHANE [S.G. 0.550] | X12: =$T$4 -> 1" Full Port | Y12: =$Y$4 -> 40 | Z12: 1.315 | AA12: 0.133 | AB12: 1.049
B13: ENTER VALUES (SATURATED STEAM) | G13: DO NOT ENTER DATA HERE | L13: G specific gravity gas = | O13: =LOOKUP(E22,DATA!F2:F15,DATA!I2:I15) ->  | Q13: =DATA!A12 -> BENZOL [S.G. 0.877] | R13: =DATA!F13 -> NITROGEN [S.G. 0.969] | X13: =$T$4 -> 1" Full Port | Y13: =$Y$5 -> 80 | Z13: 1.315 | AA13: 0.179 | AB13: 0.957
B14: UPSTREAM PRESSURE (PSIA) | G14: PRESSURE DROP (PSI) | J14: =E14-E15 -> 0 | L14: Flowing temperature (°R) = | O14: =E25+459.67 -> 459.67 | Q14: =DATA!A13 -> BROMINE [S.G. 3.12] | R14: =DATA!F14 -> OXYGEN [S.G. 1.099] | X14: 1-1/2" Full Port | Y14: =$Y$2 -> 5 | Z14: 1.9 | AA14: 0.065 | AB14: 1.77
B15: DOWNSTREAM PRESSURE (PSIA) | G15: REQUIRED CV | J15: =0+IF(J14<0.5*0.36*E14,E16/(2.1*(J14*(E14+E15))^0.5),E16/(1.83*0.6*E14)) ->  | L15: Upstream pressure converted to PSIA = | O15: =($E$6)+14.7 -> 14.7 | Q15: =DATA!A14 -> BUTANE [S.G. 0.601] | R15: =DATA!F15 -> PROPANE [S.G. 1.531] | X15: =$T$5 -> 1-1/2" Full Port | Y15: =$Y$3 -> 10 | Z15: 1.9 | AA15: 0.109 | AB15: 1.682
B16: FLOW RATE (LB/HR) | G16: Temp of saturated steam (°F) | J16: =LOOKUP(E14,DATA!L3:L61,DATA!M3:M61) ->  | Q16: =DATA!A15 -> CARBON DISULFIDE [S.G. 1.265] | X16: =$T$5 -> 1-1/2" Full Port | Y16: =$Y$4 -> 40 | Z16: 1.9 | AA16: 0.145 | AB16: 1.61
G17: =IF(O19<0.33,"Sound generated at the outlet is negligible",IF(O19>=1,"High Mach number; Select a larger valve size","Please determine if sound level below is OK")) ->  | N17: For steam: | Q17: =DATA!A16 -> CARBON TETRACHLORIDE [S.G. 1.589] | X17: =$T$5 -> 1-1/2" Full Port | Y17: =$Y$5 -> 80 | Z17: 1.9 | AA17: 0.2 | AB17: 1.5
G18: Predicted noise level (dBA) | J18: =10*LOG((80*(E15^2)*(O11^2)*(O25^2)*(O19^8)*(1+0.0007*I3)^6)/(O26^3)) ->  | L18: Min. valve outlet diameter (in) | O18: =0.119*(SQRT((E16*(1+0.0007*J16))/E15)) ->  | Q18: =DATA!A17 -> CARENE [0.860] | X18: 2" Full Port | Y18: =$Y$2 -> 5 | Z18: 2.375 | AA18: 0.065 | AB18: 2.245
M19: Mach number | O19: =(0.014*(E16*(1+0.0007*I3)))/(E15*O11^2) ->  | Q19: =DATA!A18 -> CHLORINE [S.G. 1.564] | X19: =$T$6 -> 2" Full Port | Y19: =$Y$3 -> 10 | Z19: 2.375 | AA19: 0.109 | AB19: 2.157
Q20: =DATA!A19 -> CHLOROFORM [S.G. 1.469] | X20: =$T$6 -> 2" Full Port | Y20: =$Y$4 -> 40 | Z20: 2.375 | AA20: 0.154 | AB20: 2.067
B21: ENTER VALUES (GAS) | G21: DO NOT ENTER DATA HERE | N21: For gas: | Q21: =DATA!A20 -> COCONUT OIL [S.G. 0.925] | X21: =$T$6 -> 2" Full Port | Y21: =$Y$5 -> 80 | Z21: 2.375 | AA21: 0.218 | AB21: 1.939
B22: GAS | G22: SPECIFIC GRAVITY | J22: =LOOKUP(D22,DATA!A95:B111) ->  | L22: Min. valve outlet diameter (in) | O22: =0.0054*(SQRT((E26*SQRT(O13*O14))/E24)) ->  | Q22: =DATA!A21 -> CRESOL [S.G. 1.027] | X22: 2-1/2" Full Port | Y22: =$Y$2 -> 5 | Z22: 2.875 | AA22: 0.083 | AB22: 2.709
B23: UPSTREAM PRESSURE (PSIA) | G23: PRESSURE DROP (PSI) | J23: =E23-E24 -> 0 | M23: Mach number | O23: =(0.0000294*(E26*SQRT(O13*O14)))/(E24*O11^2) ->  | Q23: =DATA!A22 -> CRUDE OIL, CALIFORNIA [S.G. 0.918] | X23: =$T$7 -> 2-1/2" Full Port | Y23: =$Y$3 -> 10 | Z23: 2.875 | AA23: 0.12 | AB23: 2.635
B24: DOWNSTREAM PRESSURE (PSIA) | G24: REQUIRED CV | J24: =0+IF(J23<0.5*0.36*E23,(E26/963)*(J22*(E25+460)/((J23*(E23+E24))))^0.5,(E26*(J22*(E25+460))^0.5)/(834*0.6*E23)) ->  | Q24: =DATA!A23 -> CRUDE OIL, MEXICAN [S.G. 0.976] | X24: =$T$7 -> 2-1/2" Full Port | Y24: =$Y$4 -> 40 | Z24: 2.875 | AA24: 0.203 | AB24: 2.469
B25: TEMPERATURE (DEGREES F) | G25: =IF(O23<0.33,"Sound generated at the outlet is negligible.",IF(O23>=1,"Select a larger valve size.","Please determine if sound level below is OK.")) ->  | L25: Downstream pipe diameter (in) | O25: =INDEX(X2:AB41,MATCH($I$2&$I$3,X2:X41&Y2:Y41,0),5) ->  | Q25: =DATA!A24 -> CRUDE OIL, TEXAS [S.G. 0.876] | X25: =$T$7 -> 2-1/2" Full Port | Y25: =$Y$5 -> 80 | Z25: 2.875 | AA25: 0.276 | AB25: 2.323
B26: FLOW RATE (SCFH) | G26: Predicted noise level (dBA) | J26: =10*LOG((0.18*(E24^2)*(O11^2)*(O25^2)*(O23^8)*O14)/(O26^3))+O12 ->  | L26: Outlet pipe wall thickness (in) | O26: =INDEX(X2:AB41,MATCH($I$2&$I$3,X2:X41&Y2:Y41,0),4) ->  | Q26: =DATA!A25 -> CUMENE [S.G. 0.862] | X26: 3" Full Port | Y26: =$Y$2 -> 5 | Z26: 3.5 | AA26: 0.083 | AB26: 3.334
Q27: =DATA!A26 -> DECANE [S.G. 0.728] | X27: =$T$8 -> 3" Full Port | Y27: =$Y$3 -> 10 | Z27: 3.5 | AA27: 0.12 | AB27: 3.26
Q28: =DATA!A27 -> DODECANE [S.G. 0.757] | X28: =$T$8 -> 3" Full Port | Y28: =$Y$4 -> 40 | Z28: 3.5 | AA28: 0.216 | AB28: 3.068
B29: CV DATA (GPM of H2O at 1 psi ∆P) | Q29: =DATA!A28 -> ETHANE [S.G. 0.572] | X29: =$T$8 -> 3" Full Port | Y29: =$Y$5 -> 80 | Z29: 3.5 | AA29: 0.3 | AB29: 2.9
B30: Percent Open | C30: Degrees Open | D30: =I2 -> 0 | E30: 60 V Upstream | F30: 45 V Upstream | G30: 30 V Upstream | H30: =VLOOKUP(I2,T1:V10,3,FALSE) ->  | Q30: =DATA!A29 -> ETHANOL [S.G. 0.79] | X30: 4" Full Port | Y30: =$Y$2 -> 5 | Z30: 4.5 | AA30: 0.083 | AB30: 4.334
Q31: =DATA!A30 -> ETHER [S.G. 0.07272] | X31: =$T$9 -> 4" Full Port | Y31: =$Y$3 -> 10 | Z31: 4.5 | AA31: 0.12 | AB31: 4.26
B32: 0 | C32: =B32*0.9 -> 0 | D32: =INDEX('Cv Charts'!$A$2:$H$418,MATCH('FULL PORT'!$I$2:$J$2&'FULL PORT'!$B32,'Cv Charts'!$A$2:$A$418&'Cv Charts'!$B$2:$B$418,0),4) ->  | E32: =INDEX('Cv Charts'!$A$2:$H$418,MATCH('FULL PORT'!$I$2:$J$2&'FULL PORT'!$B32,'Cv Charts'!$A$2:$A$418&'Cv Charts'!$B$2:$B$418,0),5) ->  | F32: =INDEX('Cv Charts'!$A$2:$H$418,MATCH('FULL PORT'!$I$2:$J$2&'FULL PORT'!$B32,'Cv Charts'!$A$2:$A$418&'Cv Charts'!$B$2:$B$418,0),6) ->  | G32: =INDEX('Cv Charts'!$A$2:$H$418,MATCH('FULL PORT'!$I$2:$J$2&'FULL PORT'!$B32,'Cv Charts'!$A$2:$A$418&'Cv Charts'!$B$2:$B$418,0),7) ->  | H32: =INDEX('Cv Charts'!$A$2:$H$418,MATCH('FULL PORT'!$I$2:$J$2&'FULL PORT'!$B32,'Cv Charts'!$A$2:$A$418&'Cv Charts'!$B$2:$B$418,0),8) ->  | Q32: =DATA!A31 -> ETHER [S.G. 0.716] | X32: =$T$9 -> 4" Full Port | Y32: =$Y$4 -> 40 | Z32: 4.5 | AA32: 0.237 | AB32: 4.026
B33: 5 | C33: =B33*0.9 -> 4.5 | D33: =INDEX('Cv Charts'!$A$2:$H$418,MATCH('FULL PORT'!$I$2:$J$2&'FULL PORT'!$B33,'Cv Charts'!$A$2:$A$418&'Cv Charts'!$B$2:$B$418,0),4) ->  | E33: =INDEX('Cv Charts'!$A$2:$H$418,MATCH('FULL PORT'!$I$2:$J$2&'FULL PORT'!$B33,'Cv Charts'!$A$2:$A$418&'Cv Charts'!$B$2:$B$418,0),5) ->  | F33: =INDEX('Cv Charts'!$A$2:$H$418,MATCH('FULL PORT'!$I$2:$J$2&'FULL PORT'!$B33,'Cv Charts'!$A$2:$A$418&'Cv Charts'!$B$2:$B$418,0),6) ->  | G33: =INDEX('Cv Charts'!$A$2:$H$418,MATCH('FULL PORT'!$I$2:$J$2&'FULL PORT'!$B33,'Cv Charts'!$A$2:$A$418&'Cv Charts'!$B$2:$B$418,0),7) ->  | H33: =INDEX('Cv Charts'!$A$2:$H$418,MATCH('FULL PORT'!$I$2:$J$2&'FULL PORT'!$B33,'Cv Charts'!$A$2:$A$418&'Cv Charts'!$B$2:$B$418,0),8) ->  | Q33: =DATA!A32 -> ETHYLAMINE [S.G. 0.683] | X33: =$T$9 -> 4" Full Port | Y33: =$Y$5 -> 80 | Z33: 4.5 | AA33: 0.337 | AB33: 3.826
B34: 10 | C34: 9 | D34: =INDEX('Cv Charts'!$A$2:$H$418,MATCH('FULL PORT'!$I$2:$J$2&'FULL PORT'!$B34,'Cv Charts'!$A$2:$A$418&'Cv Charts'!$B$2:$B$418,0),4) ->  | E34: =INDEX('Cv Charts'!$A$2:$H$418,MATCH('FULL PORT'!$I$2:$J$2&'FULL PORT'!$B34,'Cv Charts'!$A$2:$A$418&'Cv Charts'!$B$2:$B$418,0),5) ->  | F34: =INDEX('Cv Charts'!$A$2:$H$418,MATCH('FULL PORT'!$I$2:$J$2&'FULL PORT'!$B34,'Cv Charts'!$A$2:$A$418&'Cv Charts'!$B$2:$B$418,0),6) ->  | G34: =INDEX('Cv Charts'!$A$2:$H$418,MATCH('FULL PORT'!$I$2:$J$2&'FULL PORT'!$B34,'Cv Charts'!$A$2:$A$418&'Cv Charts'!$B$2:$B$418,0),7) ->  | H34: =INDEX('Cv Charts'!$A$2:$H$418,MATCH('FULL PORT'!$I$2:$J$2&'FULL PORT'!$B34,'Cv Charts'!$A$2:$A$418&'Cv Charts'!$B$2:$B$418,0),8) ->  | Q34: =DATA!A33 -> ETHYLENE GLYCOL [S.G. 1.100] | X34: 6" Full Port | Y34: =$Y$2 -> 5 | Z34: 6.625 | AA34: 0.109 | AB34: 6.407
B35: 15 | C35: 13.5 | D35: =INDEX('Cv Charts'!$A$2:$H$418,MATCH('FULL PORT'!$I$2:$J$2&'FULL PORT'!$B35,'Cv Charts'!$A$2:$A$418&'Cv Charts'!$B$2:$B$418,0),4) ->  | E35: =INDEX('Cv Charts'!$A$2:$H$418,MATCH('FULL PORT'!$I$2:$J$2&'FULL PORT'!$B35,'Cv Charts'!$A$2:$A$418&'Cv Charts'!$B$2:$B$418,0),5) ->  | F35: =INDEX('Cv Charts'!$A$2:$H$418,MATCH('FULL PORT'!$I$2:$J$2&'FULL PORT'!$B35,'Cv Charts'!$A$2:$A$418&'Cv Charts'!$B$2:$B$418,0),6) ->  | G35: =INDEX('Cv Charts'!$A$2:$H$418,MATCH('FULL PORT'!$I$2:$J$2&'FULL PORT'!$B35,'Cv Charts'!$A$2:$A$418&'Cv Charts'!$B$2:$B$418,0),7) ->  | H35: =INDEX('Cv Charts'!$A$2:$H$418,MATCH('FULL PORT'!$I$2:$J$2&'FULL PORT'!$B35,'Cv Charts'!$A$2:$A$418&'Cv Charts'!$B$2:$B$418,0),8) ->  | Q35: =DATA!A34 -> FLUORINE (FREON) REFRIGERANT R-11 [S.G. 1.480] | X35: =$T$10 -> 6" Full Port | Y35: =$Y$3 -> 10 | Z35: 6.625 | AA35: 0.134 | AB35: 6.357
B36: 20 | C36: 18 | D36: =INDEX('Cv Charts'!$A$2:$H$418,MATCH('FULL PORT'!$I$2:$J$2&'FULL PORT'!$B36,'Cv Charts'!$A$2:$A$418&'Cv Charts'!$B$2:$B$418,0),4) ->  | E36: =INDEX('Cv Charts'!$A$2:$H$418,MATCH('FULL PORT'!$I$2:$J$2&'FULL PORT'!$B36,'Cv Charts'!$A$2:$A$418&'Cv Charts'!$B$2:$B$418,0),5) ->  | F36: =INDEX('Cv Charts'!$A$2:$H$418,MATCH('FULL PORT'!$I$2:$J$2&'FULL PORT'!$B36,'Cv Charts'!$A$2:$A$418&'Cv Charts'!$B$2:$B$418,0),6) ->  | G36: =INDEX('Cv Charts'!$A$2:$H$418,MATCH('FULL PORT'!$I$2:$J$2&'FULL PORT'!$B36,'Cv Charts'!$A$2:$A$418&'Cv Charts'!$B$2:$B$418,0),7) ->  | H36: =INDEX('Cv Charts'!$A$2:$H$418,MATCH('FULL PORT'!$I$2:$J$2&'FULL PORT'!$B36,'Cv Charts'!$A$2:$A$418&'Cv Charts'!$B$2:$B$418,0),8) ->  | Q36: =DATA!A35 -> FLUORINE [S.G. 1.108] | X36: =$T$10 -> 6" Full Port | Y36: =$Y$4 -> 40 | Z36: 6.625 | AA36: 0.28 | AB36: 6.065
B37: 25 | C37: 22.5 | D37: =INDEX('Cv Charts'!$A$2:$H$418,MATCH('FULL PORT'!$I$2:$J$2&'FULL PORT'!$B37,'Cv Charts'!$A$2:$A$418&'Cv Charts'!$B$2:$B$418,0),4) ->  | E37: =INDEX('Cv Charts'!$A$2:$H$418,MATCH('FULL PORT'!$I$2:$J$2&'FULL PORT'!$B37,'Cv Charts'!$A$2:$A$418&'Cv Charts'!$B$2:$B$418,0),5) ->  | F37: =INDEX('Cv Charts'!$A$2:$H$418,MATCH('FULL PORT'!$I$2:$J$2&'FULL PORT'!$B37,'Cv Charts'!$A$2:$A$418&'Cv Charts'!$B$2:$B$418,0),6) ->  | G37: =INDEX('Cv Charts'!$A$2:$H$418,MATCH('FULL PORT'!$I$2:$J$2&'FULL PORT'!$B37,'Cv Charts'!$A$2:$A$418&'Cv Charts'!$B$2:$B$418,0),7) ->  | H37: =INDEX('Cv Charts'!$A$2:$H$418,MATCH('FULL PORT'!$I$2:$J$2&'FULL PORT'!$B37,'Cv Charts'!$A$2:$A$418&'Cv Charts'!$B$2:$B$418,0),8) ->  | Q37: =DATA!A36 -> FLUORINE REFRIGERANT R-12 [S.G. 1.315] | X37: =$T$10 -> 6" Full Port | Y37: =$Y$5 -> 80 | Z37: 6.625 | AA37: 0.432 | AB37: 5.761
B38: 30 | C38: 27 | D38: =INDEX('Cv Charts'!$A$2:$H$418,MATCH('FULL PORT'!$I$2:$J$2&'FULL PORT'!$B38,'Cv Charts'!$A$2:$A$418&'Cv Charts'!$B$2:$B$418,0),4) ->  | E38: =INDEX('Cv Charts'!$A$2:$H$418,MATCH('FULL PORT'!$I$2:$J$2&'FULL PORT'!$B38,'Cv Charts'!$A$2:$A$418&'Cv Charts'!$B$2:$B$418,0),5) ->  | F38: =INDEX('Cv Charts'!$A$2:$H$418,MATCH('FULL PORT'!$I$2:$J$2&'FULL PORT'!$B38,'Cv Charts'!$A$2:$A$418&'Cv Charts'!$B$2:$B$418,0),6) ->  | G38: =INDEX('Cv Charts'!$A$2:$H$418,MATCH('FULL PORT'!$I$2:$J$2&'FULL PORT'!$B38,'Cv Charts'!$A$2:$A$418&'Cv Charts'!$B$2:$B$418,0),7) ->  | H38: =INDEX('Cv Charts'!$A$2:$H$418,MATCH('FULL PORT'!$I$2:$J$2&'FULL PORT'!$B38,'Cv Charts'!$A$2:$A$418&'Cv Charts'!$B$2:$B$418,0),8) ->  | Q38: =DATA!A37 -> FLUORINE REFRIGERANT R-22 [S.G. 1.197] | X38: 8" Full Port | Y38: =$Y$2 -> 5 | Z38: 8.625 | AA38: 0.109 | AB38: 8.407
B39: 35 | C39: 31.5 | D39: =INDEX('Cv Charts'!$A$2:$H$418,MATCH('FULL PORT'!$I$2:$J$2&'FULL PORT'!$B39,'Cv Charts'!$A$2:$A$418&'Cv Charts'!$B$2:$B$418,0),4) ->  | E39: =INDEX('Cv Charts'!$A$2:$H$418,MATCH('FULL PORT'!$I$2:$J$2&'FULL PORT'!$B39,'Cv Charts'!$A$2:$A$418&'Cv Charts'!$B$2:$B$418,0),5) ->  | F39: =INDEX('Cv Charts'!$A$2:$H$418,MATCH('FULL PORT'!$I$2:$J$2&'FULL PORT'!$B39,'Cv Charts'!$A$2:$A$418&'Cv Charts'!$B$2:$B$418,0),6) ->  | G39: =INDEX('Cv Charts'!$A$2:$H$418,MATCH('FULL PORT'!$I$2:$J$2&'FULL PORT'!$B39,'Cv Charts'!$A$2:$A$418&'Cv Charts'!$B$2:$B$418,0),7) ->  | H39: =INDEX('Cv Charts'!$A$2:$H$418,MATCH('FULL PORT'!$I$2:$J$2&'FULL PORT'!$B39,'Cv Charts'!$A$2:$A$418&'Cv Charts'!$B$2:$B$418,0),8) ->  | Q39: =DATA!A38 -> FORMALDEHYDE [S.G. 0.815] | X39: 8" Full Port | Y39: =$Y$3 -> 10 | Z39: 8.625 | AA39: 0.148 | AB39: 8.329
B40: 40 | C40: 36 | D40: =INDEX('Cv Charts'!$A$2:$H$418,MATCH('FULL PORT'!$I$2:$J$2&'FULL PORT'!$B40,'Cv Charts'!$A$2:$A$418&'Cv Charts'!$B$2:$B$418,0),4) ->  | E40: =INDEX('Cv Charts'!$A$2:$H$418,MATCH('FULL PORT'!$I$2:$J$2&'FULL PORT'!$B40,'Cv Charts'!$A$2:$A$418&'Cv Charts'!$B$2:$B$418,0),5) ->  | F40: =INDEX('Cv Charts'!$A$2:$H$418,MATCH('FULL PORT'!$I$2:$J$2&'FULL PORT'!$B40,'Cv Charts'!$A$2:$A$418&'Cv Charts'!$B$2:$B$418,0),6) ->  | G40: =INDEX('Cv Charts'!$A$2:$H$418,MATCH('FULL PORT'!$I$2:$J$2&'FULL PORT'!$B40,'Cv Charts'!$A$2:$A$418&'Cv Charts'!$B$2:$B$418,0),7) ->  | H40: =INDEX('Cv Charts'!$A$2:$H$418,MATCH('FULL PORT'!$I$2:$J$2&'FULL PORT'!$B40,'Cv Charts'!$A$2:$A$418&'Cv Charts'!$B$2:$B$418,0),8) ->  | Q40: =DATA!A39 -> FURFORAL [S.G. 1.159] | X40: 8" Full Port | Y40: =$Y$4 -> 40 | Z40: 8.625 | AA40: 0.322 | AB40: 7.981
B41: 45 | C41: 40.5 | D41: =INDEX('Cv Charts'!$A$2:$H$418,MATCH('FULL PORT'!$I$2:$J$2&'FULL PORT'!$B41,'Cv Charts'!$A$2:$A$418&'Cv Charts'!$B$2:$B$418,0),4) ->  | E41: =INDEX('Cv Charts'!$A$2:$H$418,MATCH('FULL PORT'!$I$2:$J$2&'FULL PORT'!$B41,'Cv Charts'!$A$2:$A$418&'Cv Charts'!$B$2:$B$418,0),5) ->  | F41: =INDEX('Cv Charts'!$A$2:$H$418,MATCH('FULL PORT'!$I$2:$J$2&'FULL PORT'!$B41,'Cv Charts'!$A$2:$A$418&'Cv Charts'!$B$2:$B$418,0),6) ->  | G41: =INDEX('Cv Charts'!$A$2:$H$418,MATCH('FULL PORT'!$I$2:$J$2&'FULL PORT'!$B41,'Cv Charts'!$A$2:$A$418&'Cv Charts'!$B$2:$B$418,0),7) ->  | H41: =INDEX('Cv Charts'!$A$2:$H$418,MATCH('FULL PORT'!$I$2:$J$2&'FULL PORT'!$B41,'Cv Charts'!$A$2:$A$418&'Cv Charts'!$B$2:$B$418,0),8) ->  | Q41: =DATA!A40 -> GLYCERIN [S.G. 1.263] | X41: 8" Full Port | Y41: =$Y$5 -> 80 | Z41: 8.625 | AA41: 0.5 | AB41: 7.625
B42: 50 | C42: 45 | D42: =INDEX('Cv Charts'!$A$2:$H$418,MATCH('FULL PORT'!$I$2:$J$2&'FULL PORT'!$B42,'Cv Charts'!$A$2:$A$418&'Cv Charts'!$B$2:$B$418,0),4) ->  | E42: =INDEX('Cv Charts'!$A$2:$H$418,MATCH('FULL PORT'!$I$2:$J$2&'FULL PORT'!$B42,'Cv Charts'!$A$2:$A$418&'Cv Charts'!$B$2:$B$418,0),5) ->  | F42: =INDEX('Cv Charts'!$A$2:$H$418,MATCH('FULL PORT'!$I$2:$J$2&'FULL PORT'!$B42,'Cv Charts'!$A$2:$A$418&'Cv Charts'!$B$2:$B$418,0),6) ->  | G42: =INDEX('Cv Charts'!$A$2:$H$418,MATCH('FULL PORT'!$I$2:$J$2&'FULL PORT'!$B42,'Cv Charts'!$A$2:$A$418&'Cv Charts'!$B$2:$B$418,0),7) ->  | H42: =INDEX('Cv Charts'!$A$2:$H$418,MATCH('FULL PORT'!$I$2:$J$2&'FULL PORT'!$B42,'Cv Charts'!$A$2:$A$418&'Cv Charts'!$B$2:$B$418,0),8) ->  | Q42: =DATA!A41 -> GLYCEROL [S.G. 1.129]
B43: 55 | C43: 49.5 | D43: =INDEX('Cv Charts'!$A$2:$H$418,MATCH('FULL PORT'!$I$2:$J$2&'FULL PORT'!$B43,'Cv Charts'!$A$2:$A$418&'Cv Charts'!$B$2:$B$418,0),4) ->  | E43: =INDEX('Cv Charts'!$A$2:$H$418,MATCH('FULL PORT'!$I$2:$J$2&'FULL PORT'!$B43,'Cv Charts'!$A$2:$A$418&'Cv Charts'!$B$2:$B$418,0),5) ->  | F43: =INDEX('Cv Charts'!$A$2:$H$418,MATCH('FULL PORT'!$I$2:$J$2&'FULL PORT'!$B43,'Cv Charts'!$A$2:$A$418&'Cv Charts'!$B$2:$B$418,0),6) ->  | G43: =INDEX('Cv Charts'!$A$2:$H$418,MATCH('FULL PORT'!$I$2:$J$2&'FULL PORT'!$B43,'Cv Charts'!$A$2:$A$418&'Cv Charts'!$B$2:$B$418,0),7) ->  | H43: =INDEX('Cv Charts'!$A$2:$H$418,MATCH('FULL PORT'!$I$2:$J$2&'FULL PORT'!$B43,'Cv Charts'!$A$2:$A$418&'Cv Charts'!$B$2:$B$418,0),8) ->  | Q43: =DATA!A42 -> GLYCOL (ETHYLENE) [S.G. 1.100]
B44: 60 | C44: 54 | D44: =INDEX('Cv Charts'!$A$2:$H$418,MATCH('FULL PORT'!$I$2:$J$2&'FULL PORT'!$B44,'Cv Charts'!$A$2:$A$418&'Cv Charts'!$B$2:$B$418,0),4) ->  | E44: =INDEX('Cv Charts'!$A$2:$H$418,MATCH('FULL PORT'!$I$2:$J$2&'FULL PORT'!$B44,'Cv Charts'!$A$2:$A$418&'Cv Charts'!$B$2:$B$418,0),5) ->  | F44: =INDEX('Cv Charts'!$A$2:$H$418,MATCH('FULL PORT'!$I$2:$J$2&'FULL PORT'!$B44,'Cv Charts'!$A$2:$A$418&'Cv Charts'!$B$2:$B$418,0),6) ->  | G44: =INDEX('Cv Charts'!$A$2:$H$418,MATCH('FULL PORT'!$I$2:$J$2&'FULL PORT'!$B44,'Cv Charts'!$A$2:$A$418&'Cv Charts'!$B$2:$B$418,0),7) ->  | H44: =INDEX('Cv Charts'!$A$2:$H$418,MATCH('FULL PORT'!$I$2:$J$2&'FULL PORT'!$B44,'Cv Charts'!$A$2:$A$418&'Cv Charts'!$B$2:$B$418,0),8) ->  | Q44: =DATA!A43 -> GLYCOL (PROPYLENE) [S.G. 1.306]
B45: 65 | C45: 58.5 | D45: =INDEX('Cv Charts'!$A$2:$H$418,MATCH('FULL PORT'!$I$2:$J$2&'FULL PORT'!$B45,'Cv Charts'!$A$2:$A$418&'Cv Charts'!$B$2:$B$418,0),4) ->  | E45: =INDEX('Cv Charts'!$A$2:$H$418,MATCH('FULL PORT'!$I$2:$J$2&'FULL PORT'!$B45,'Cv Charts'!$A$2:$A$418&'Cv Charts'!$B$2:$B$418,0),5) ->  | F45: =INDEX('Cv Charts'!$A$2:$H$418,MATCH('FULL PORT'!$I$2:$J$2&'FULL PORT'!$B45,'Cv Charts'!$A$2:$A$418&'Cv Charts'!$B$2:$B$418,0),6) ->  | G45: =INDEX('Cv Charts'!$A$2:$H$418,MATCH('FULL PORT'!$I$2:$J$2&'FULL PORT'!$B45,'Cv Charts'!$A$2:$A$418&'Cv Charts'!$B$2:$B$418,0),7) ->  | H45: =INDEX('Cv Charts'!$A$2:$H$418,MATCH('FULL PORT'!$I$2:$J$2&'FULL PORT'!$B45,'Cv Charts'!$A$2:$A$418&'Cv Charts'!$B$2:$B$418,0),8) ->  | Q45: =DATA!A44 -> HEPTANE [S.G. 0.681]
B46: 70 | C46: 63 | D46: =INDEX('Cv Charts'!$A$2:$H$418,MATCH('FULL PORT'!$I$2:$J$2&'FULL PORT'!$B46,'Cv Charts'!$A$2:$A$418&'Cv Charts'!$B$2:$B$418,0),4) ->  | E46: =INDEX('Cv Charts'!$A$2:$H$418,MATCH('FULL PORT'!$I$2:$J$2&'FULL PORT'!$B46,'Cv Charts'!$A$2:$A$418&'Cv Charts'!$B$2:$B$418,0),5) ->  | F46: =INDEX('Cv Charts'!$A$2:$H$418,MATCH('FULL PORT'!$I$2:$J$2&'FULL PORT'!$B46,'Cv Charts'!$A$2:$A$418&'Cv Charts'!$B$2:$B$418,0),6) ->  | G46: =INDEX('Cv Charts'!$A$2:$H$418,MATCH('FULL PORT'!$I$2:$J$2&'FULL PORT'!$B46,'Cv Charts'!$A$2:$A$418&'Cv Charts'!$B$2:$B$418,0),7) ->  | H46: =INDEX('Cv Charts'!$A$2:$H$418,MATCH('FULL PORT'!$I$2:$J$2&'FULL PORT'!$B46,'Cv Charts'!$A$2:$A$418&'Cv Charts'!$B$2:$B$418,0),8) ->  | Q46: =DATA!A45 -> HEXANE [S.G. 0.657]
B47: 75 | C47: 67.5 | D47: =INDEX('Cv Charts'!$A$2:$H$418,MATCH('FULL PORT'!$I$2:$J$2&'FULL PORT'!$B47,'Cv Charts'!$A$2:$A$418&'Cv Charts'!$B$2:$B$418,0),4) ->  | E47: =INDEX('Cv Charts'!$A$2:$H$418,MATCH('FULL PORT'!$I$2:$J$2&'FULL PORT'!$B47,'Cv Charts'!$A$2:$A$418&'Cv Charts'!$B$2:$B$418,0),5) ->  | F47: =INDEX('Cv Charts'!$A$2:$H$418,MATCH('FULL PORT'!$I$2:$J$2&'FULL PORT'!$B47,'Cv Charts'!$A$2:$A$418&'Cv Charts'!$B$2:$B$418,0),6) ->  | G47: =INDEX('Cv Charts'!$A$2:$H$418,MATCH('FULL PORT'!$I$2:$J$2&'FULL PORT'!$B47,'Cv Charts'!$A$2:$A$418&'Cv Charts'!$B$2:$B$418,0),7) ->  | H47: =INDEX('Cv Charts'!$A$2:$H$418,MATCH('FULL PORT'!$I$2:$J$2&'FULL PORT'!$B47,'Cv Charts'!$A$2:$A$418&'Cv Charts'!$B$2:$B$418,0),8) ->  | Q47: =DATA!A46 -> HEXANOL [S.G. 0.813]
B48: 80 | C48: 72 | D48: =INDEX('Cv Charts'!$A$2:$H$418,MATCH('FULL PORT'!$I$2:$J$2&'FULL PORT'!$B48,'Cv Charts'!$A$2:$A$418&'Cv Charts'!$B$2:$B$418,0),4) ->  | E48: =INDEX('Cv Charts'!$A$2:$H$418,MATCH('FULL PORT'!$I$2:$J$2&'FULL PORT'!$B48,'Cv Charts'!$A$2:$A$418&'Cv Charts'!$B$2:$B$418,0),5) ->  | F48: =INDEX('Cv Charts'!$A$2:$H$418,MATCH('FULL PORT'!$I$2:$J$2&'FULL PORT'!$B48,'Cv Charts'!$A$2:$A$418&'Cv Charts'!$B$2:$B$418,0),6) ->  | G48: =INDEX('Cv Charts'!$A$2:$H$418,MATCH('FULL PORT'!$I$2:$J$2&'FULL PORT'!$B48,'Cv Charts'!$A$2:$A$418&'Cv Charts'!$B$2:$B$418,0),7) ->  | H48: =INDEX('Cv Charts'!$A$2:$H$418,MATCH('FULL PORT'!$I$2:$J$2&'FULL PORT'!$B48,'Cv Charts'!$A$2:$A$418&'Cv Charts'!$B$2:$B$418,0),8) ->  | Q48: =DATA!A47 -> HEXENE [S.G. 0.673]
B49: 85 | C49: 76.5 | D49: =INDEX('Cv Charts'!$A$2:$H$418,MATCH('FULL PORT'!$I$2:$J$2&'FULL PORT'!$B49,'Cv Charts'!$A$2:$A$418&'Cv Charts'!$B$2:$B$418,0),4) ->  | E49: =INDEX('Cv Charts'!$A$2:$H$418,MATCH('FULL PORT'!$I$2:$J$2&'FULL PORT'!$B49,'Cv Charts'!$A$2:$A$418&'Cv Charts'!$B$2:$B$418,0),5) ->  | F49: =INDEX('Cv Charts'!$A$2:$H$418,MATCH('FULL PORT'!$I$2:$J$2&'FULL PORT'!$B49,'Cv Charts'!$A$2:$A$418&'Cv Charts'!$B$2:$B$418,0),6) ->  | G49: =INDEX('Cv Charts'!$A$2:$H$418,MATCH('FULL PORT'!$I$2:$J$2&'FULL PORT'!$B49,'Cv Charts'!$A$2:$A$418&'Cv Charts'!$B$2:$B$418,0),7) ->  | H49: =INDEX('Cv Charts'!$A$2:$H$418,MATCH('FULL PORT'!$I$2:$J$2&'FULL PORT'!$B49,'Cv Charts'!$A$2:$A$418&'Cv Charts'!$B$2:$B$418,0),8) ->  | Q49: =DATA!A48 -> HYDRAZINE [S.G. 0.797]
B50: 90 | C50: 81 | D50: =INDEX('Cv Charts'!$A$2:$H$418,MATCH('FULL PORT'!$I$2:$J$2&'FULL PORT'!$B50,'Cv Charts'!$A$2:$A$418&'Cv Charts'!$B$2:$B$418,0),4) ->  | E50: =INDEX('Cv Charts'!$A$2:$H$418,MATCH('FULL PORT'!$I$2:$J$2&'FULL PORT'!$B50,'Cv Charts'!$A$2:$A$418&'Cv Charts'!$B$2:$B$418,0),5) ->  | F50: =INDEX('Cv Charts'!$A$2:$H$418,MATCH('FULL PORT'!$I$2:$J$2&'FULL PORT'!$B50,'Cv Charts'!$A$2:$A$418&'Cv Charts'!$B$2:$B$418,0),6) ->  | G50: =INDEX('Cv Charts'!$A$2:$H$418,MATCH('FULL PORT'!$I$2:$J$2&'FULL PORT'!$B50,'Cv Charts'!$A$2:$A$418&'Cv Charts'!$B$2:$B$418,0),7) ->  | H50: =INDEX('Cv Charts'!$A$2:$H$418,MATCH('FULL PORT'!$I$2:$J$2&'FULL PORT'!$B50,'Cv Charts'!$A$2:$A$418&'Cv Charts'!$B$2:$B$418,0),8) ->  | Q50: =DATA!A49 -> KEROSENE [S.G. 0.820]
B51: 95 | C51: 85.5 | D51: =INDEX('Cv Charts'!$A$2:$H$418,MATCH('FULL PORT'!$I$2:$J$2&'FULL PORT'!$B51,'Cv Charts'!$A$2:$A$418&'Cv Charts'!$B$2:$B$418,0),4) ->  | E51: =INDEX('Cv Charts'!$A$2:$H$418,MATCH('FULL PORT'!$I$2:$J$2&'FULL PORT'!$B51,'Cv Charts'!$A$2:$A$418&'Cv Charts'!$B$2:$B$418,0),5) ->  | F51: =INDEX('Cv Charts'!$A$2:$H$418,MATCH('FULL PORT'!$I$2:$J$2&'FULL PORT'!$B51,'Cv Charts'!$A$2:$A$418&'Cv Charts'!$B$2:$B$418,0),6) ->  | G51: =INDEX('Cv Charts'!$A$2:$H$418,MATCH('FULL PORT'!$I$2:$J$2&'FULL PORT'!$B51,'Cv Charts'!$A$2:$A$418&'Cv Charts'!$B$2:$B$418,0),7) ->  | H51: =INDEX('Cv Charts'!$A$2:$H$418,MATCH('FULL PORT'!$I$2:$J$2&'FULL PORT'!$B51,'Cv Charts'!$A$2:$A$418&'Cv Charts'!$B$2:$B$418,0),8) ->  | Q51: =DATA!A50 -> KRYPTON [S.G. 2.818]
B52: 100 | C52: 90 | D52: =INDEX('Cv Charts'!$A$2:$H$418,MATCH('FULL PORT'!$I$2:$J$2&'FULL PORT'!$B52,'Cv Charts'!$A$2:$A$418&'Cv Charts'!$B$2:$B$418,0),4) ->  | E52: =INDEX('Cv Charts'!$A$2:$H$418,MATCH('FULL PORT'!$I$2:$J$2&'FULL PORT'!$B52,'Cv Charts'!$A$2:$A$418&'Cv Charts'!$B$2:$B$418,0),5) ->  | F52: =INDEX('Cv Charts'!$A$2:$H$418,MATCH('FULL PORT'!$I$2:$J$2&'FULL PORT'!$B52,'Cv Charts'!$A$2:$A$418&'Cv Charts'!$B$2:$B$418,0),6) ->  | G52: =INDEX('Cv Charts'!$A$2:$H$418,MATCH('FULL PORT'!$I$2:$J$2&'FULL PORT'!$B52,'Cv Charts'!$A$2:$A$418&'Cv Charts'!$B$2:$B$418,0),7) ->  | H52: =INDEX('Cv Charts'!$A$2:$H$418,MATCH('FULL PORT'!$I$2:$J$2&'FULL PORT'!$B52,'Cv Charts'!$A$2:$A$418&'Cv Charts'!$B$2:$B$418,0),8) ->  | Q52: LIQUID NITROGEN [S.G. 0.807]
Q53: LIQUIFIED NATURAL GAS (LNG) [S.G. 0.43]
Q54: =DATA!A53 -> LP GAS (PROPANE) [S.G. 1.500]
Q55: =DATA!A54 -> MERCURY [S.G. 13.633]
Q56: =DATA!A55 -> METHANE [S.G. 0.466]
Q57: =DATA!A56 -> METHANOL [S.G. 0.79]
Q58: =DATA!A57 -> MOLASSES B [S.G. 1.445]
Q59: =DATA!A58 -> NAPTHALENE [S.G. 0.963]
Q60: =DATA!A59 -> NEON [S.G. 0.697]
Q61: =DATA!A60 -> NONANOL [S.G. 0.823]
Q62: =DATA!A61 -> OCTANE [S.G. 0.701]
Q63: =DATA!A62 -> OLIVE OIL [S.G. 0.911]
Q64: =DATA!A63 -> OXYGEN [S.G. 1.140]
Q65: =DATA!A64 -> PALM OIL [S.G. 0.924]
Q66: =DATA!A65 -> PALMITIC ACID [S.G. 0.853]
Q67: =DATA!A66 -> PENTANE [S.G. 0.755]
Q68: =DATA!A67 -> PHENOL [S.G. 1.075]
Q69: =DATA!A68 -> PHOSGENE [S.G. 1.381]
Q70: =DATA!A69 -> PINENE [S.G. 0.858]
Q71: =DATA!A70 -> PROPANE [S.G. 0.540]
Q72: =DATA!A71 -> PROPYLENE [S.G. 0.516]
Q73: =DATA!A72 -> PROPYLENE GLYCOL [S.G. 1.036]
Q74: =DATA!A73 -> PYRIDINE [S.G. 0.968]
Q75: =DATA!A74 -> REFRIGERANT 12 [S.G. 1.315]
Q76: =DATA!A75 -> REFRIGERANT 22 [S.G. 1.197]
Q77: =DATA!A76 -> SAE 10 OIL [S.G. 0.908]
Q78: =DATA!A77 -> SAE 30 OIL [S.G. 0.908]
Q79: =DATA!A78 -> SAE 50 OIL [S.G. 0.908]
Q80: =DATA!A79 -> SAE 70 OIL [S.G. 0.908]
Q81: =DATA!A80 -> SEA WATER [S.G. 1.028]
Q82: =DATA!A81 -> SILANE [S.G. 0.719]
Q83: =DATA!A82 -> STEARIC ACID [S.G. 0.941]
Q84: =DATA!A83 -> STYRENE [S.G. 0.906]
Q85: =DATA!A84 -> SULFURIC ACID [S.G. 1.84]
Q86: =DATA!A85 -> TERPINENE [S.G. 0.850]
Q87: =DATA!A86 -> TOLUENE [S.G. 0.865]
Q88: =DATA!A87 -> TURPENTINE [S.G. 0.871]
Q89: =DATA!A88 -> VEGETABLE OIL [S.G. 0.918]
Q90: =DATA!A90 -> WATER, PURE [S.G. 1.000]
Q91: =DATA!A91 -> WATER, SEA [S.G. 1.025]

Sheet Cv Charts (hidden)
A1: Size | B1: Percent Open | C1: Degrees Open | D1: =A1 -> Size | E1: 60 V Upstream | F1: 45 V Upstream | G1: 30 V Upstream | H1: 1/16" Slot Upstream
A2: 1/2" Tubing Port (0.37) | B2: 0 | C2: =B2*0.9 -> 0 | D2: 0 | E2: 0 | F2: 0 | G2: 0 | H2: 0
A3: 1/2" Tubing Port (0.37) | B3: 5 | C3: 4.5 | D3: 0 | E3: 0 | F3: 0 | G3: 0 | H3: 0
A4: 1/2" Tubing Port (0.37) | B4: 10 | C4: 9 | D4: 0 | E4: 0 | F4: 0 | G4: 0 | H4: 0
A5: 1/2" Tubing Port (0.37) | B5: 15 | C5: 13.5 | D5: 0.01546666667 | E5: 0 | F5: 0 | G5: 0 | H5: 0
A6: 1/2" Tubing Port (0.37) | B6: 20 | C6: 18 | D6: 0.0638 | E6: 0 | F6: 0 | G6: 0 | H6: 0
A7: 1/2" Tubing Port (0.37) | B7: 25 | C7: 22.5 | D7: 0.1102 | E7: 0 | F7: 0 | G7: 0 | H7: 0
A8: 1/2" Tubing Port (0.37) | B8: 30 | C8: 27 | D8: 0.1237333333 | E8: 0 | F8: 0 | G8: 0 | H8: 0
A9: 1/2" Tubing Port (0.37) | B9: 35 | C9: 31.5 | D9: 0.1643333333 | E9: 0 | F9: 0 | G9: 0 | H9: 0
A10: 1/2" Tubing Port (0.37) | B10: 40 | C10: 36 | D10: 0.2513333333 | E10: 0 | F10: 0 | G10: 0 | H10: 0
A11: 1/2" Tubing Port (0.37) | B11: 45 | C11: 40.5 | D11: 0.3673333333 | E11: 0.027 | F11: 0.005 | G11: 0.005 | H11: 0.052
A12: 1/2" Tubing Port (0.37) | B12: 50 | C12: 45 | D12: 0.464 | E12: 0.05 | F12: 0.05 | G12: 0.05 | H12: 0.1
A13: 1/2" Tubing Port (0.37) | B13: 55 | C13: 49.5 | D13: 0.5606666667 | E13: 0.13 | F13: 0.08 | G13: 0.08 | H13: 0.17
A14: 1/2" Tubing Port (0.37) | B14: 60 | C14: 54 | D14: 0.696 | E14: 0.32 | F14: 0.25 | G14: 0.25 | H14: 0.25
A15: 1/2" Tubing Port (0.37) | B15: 65 | C15: 58.5 | D15: 0.928 | E15: 0.58 | F15: 0.39 | G15: 0.39 | H15: 0.39
A16: 1/2" Tubing Port (0.37) | B16: 70 | C16: 63 | D16: 1.198666667 | E16: 0.9 | F16: 0.6 | G16: 0.6 | H16: 0.53
A17: 1/2" Tubing Port (0.37) | B17: 75 | C17: 67.5 | D17: 1.585333333 | E17: 1.3 | F17: 0.88 | G17: 0.83 | H17: 0.63
A18: 1/2" Tubing Port (0.37) | B18: 80 | C18: 72 | D18: 2.088 | E18: 1.7 | F18: 1.3 | G18: 1.2 | H18: 0.75
A19: 1/2" Tubing Port (0.37) | B19: 85 | C19: 76.5 | D19: 2.726 | E19: 2.8 | F19: 1.8 | G19: 1.3 | H19: 0.87
A20: 1/2" Tubing Port (0.37) | B20: 90 | C20: 81 | D20: 3.538 | E20: 4.3 | F20: 3 | G20: 1.8 | H20: 0.93
A21: 1/2" Tubing Port (0.37) | B21: 95 | C21: 85.5 | D21: 4.717333333 | E21: 4.3 | F21: 3 | G21: 1.8 | H21: 0.93
A22: 1/2" Tubing Port (0.37) | B22: 100 | C22: 90 | D22: 7.25 | E22: 4.3 | F22: 3 | G22: 1.8 | H22: 0.93
A23: Size | B23: Percent Open | C23: Degrees Open | D23: =A23 -> Size | E23: 60 V Upstream | F23: 45 V Upstream | G23: 30 V Upstream | H23: 1/8" Slot Upstream
A24: 1/2" Full Port | B24: 0 | C24: =B24*0.9 -> 0 | D24: 0 | E24: 0 | F24: 0 | G24: 0 | H24: 0
A25: 1/2" Full Port | B25: 5 | C25: 4.5 | D25: 0 | E25: 0 | F25: 0 | G25: 0 | H25: 0
A26: 1/2" Full Port | B26: 10 | C26: 9 | D26: 0 | E26: 0 | F26: 0 | G26: 0 | H26: 0
A27: 1/2" Full Port | B27: 15 | C27: 13.5 | D27: 0.0252 | E27: 0.02974348809 | F27: 0.02327751242 | G27: 0.009358525769 | H27: 0.08320556502
A28: 1/2" Full Port | B28: 20 | C28: 18 | D28: 0.1056 | E28: 0.05948697619 | F28: 0.04655502484 | G28: 0.02807557731 | H28: 0.16641113
A29: 1/2" Full Port | B29: 25 | C29: 22.5 | D29: 0.18 | E29: 0.08923046428 | F29: 0.06983253726 | G29: 0.07019734445 | H29: 0.2496166951
A30: 1/2" Full Port | B30: 30 | C30: 27 | D30: 0.204 | E30: 0.1381772956 | F30: 0.09311004969 | G30: 0.1052960167 | H30: 0.3328222601
A31: 1/2" Full Port | B31: 35 | C31: 31.5 | D31: 0.264 | E31: 0.2331547934 | F31: 0.1606338655 | G31: 0.1614538922 | H31: 0.4114726101
A32: 1/2" Full Port | B32: 40 | C32: 36 | D32: 0.42 | E32: 0.3974482461 | F32: 0.3074403837 | G32: 0.3086070084 | H32: 0.517534049
A33: 1/2" Full Port | B33: 45 | C33: 40.5 | D33: 0.612 | E33: 0.5591741047 | F33: 0.4091774189 | G33: 0.4055808631 | H33: 0.6982655246
A34: 1/2" Full Port | B34: 50 | C34: 45 | D34: 0.768 | E34: 0.6934586235 | F34: 0.5385899847 | G34: 0.5026244269 | H34: 0.9197059307
A35: 1/2" Full Port | B35: 55 | C35: 49.5 | D35: 0.924 | E35: 1.04184179 | F35: 0.6964547784 | G35: 0.6602587141 | H35: 1.104630797
A36: 1/2" Full Port | B36: 60 | C36: 54 | D36: 1.152 | E36: 1.214469662 | F36: 0.9249365943 | G36: 0.9192537528 | H36: 1.258353561
A37: 1/2" Full Port | B37: 65 | C37: 58.5 | D37: 1.56 | E37: 1.674990895 | F37: 1.175833431 | G37: 1.106345252 | H37: 1.404654689
A38: 1/2" Full Port | B38: 70 | C38: 63 | D38: 1.92 | E38: 1.915191339 | F38: 1.438176563 | G38: 1.344316324 | H38: 1.632253187
A39: 1/2" Full Port | B39: 75 | C39: 67.5 | D39: 2.4 | E39: 2.552949606 | F39: 1.723680311 | G39: 1.542368253 | H39: 1.777955115
A40: 1/2" Full Port | B40: 80 | C40: 72 | D40: 3.48 | E40: 2.857435566 | F40: 2.155194773 | G40: 1.851709094 | H40: 1.959983791
A41: 1/2" Full Port | B41: 85 | C41: 76.5 | D41: 4.56 | E41: 3.648422614 | F41: 2.71463202 | G41: 2.25417858 | H41: 2.162866165
A42: 1/2" Full Port | B42: 90 | C42: 81 | D42: 5.88 | E42: 4.841049786 | F42: 3.242787193 | G42: 2.665830201 | H42: 2.306564236
A43: 1/2" Full Port | B43: 95 | C43: 85.5 | D43: 7.8 | E43: 6.098957037 | F43: 4.040773143 | G43: 3.092305554 | H43: 2.413629222
A44: 1/2" Full Port | B44: 100 | C44: 90 | D44: 12 | E44: 7.791229961 | F44: 5.5 | G44: 3.255058478 | H44: 2.509724672
A45: Size | B45: Percent Open | C45: Degrees Open | D45: =A45 -> Size | E45: 60 V Upstream | F45: 45 V Upstream | G45: 30 V Upstream | H45: 1/8" Slot Upstream
A46: 3/4" Tubing Port (0.62) | B46: 0 | C46: =B46*0.9 -> 0 | D46: 0 | E46: 0 | F46: 0 | G46: 0 | H46: 0
A47: 3/4" Tubing Port (0.62) | B47: 5 | C47: 4.5 | D47: 0 | E47: 0 | F47: 0 | G47: 0 | H47: 0
A48: 3/4" Tubing Port (0.62) | B48: 10 | C48: 9 | D48: 0 | E48: 0 | F48: 0 | G48: 0 | H48: 0
A49: 3/4" Tubing Port (0.62) | B49: 15 | C49: 13.5 | D49: 0.05333333333 | E49: 0.04573358729 | F49: 0.0357915031 | G49: 0.01438966922 | H49: 0.1031749006
A50: 3/4" Tubing Port (0.62) | B50: 20 | C50: 18 | D50: 0.22 | E50: 0.09146717459 | F50: 0.0715830062 | G50: 0.04316900767 | H50: 0.2063498012
A51: 3/4" Tubing Port (0.62) | B51: 25 | C51: 22.5 | D51: 0.38 | E51: 0.1372007619 | F51: 0.1073745093 | G51: 0.1079354368 | H51: 0.3095247019
A52: 3/4" Tubing Port (0.62) | B52: 30 | C52: 27 | D52: 0.4266666667 | E52: 0.2124614097 | F52: 0.1431660124 | G52: 0.1619031552 | H52: 0.4126996025
A53: 3/4" Tubing Port (0.62) | B53: 35 | C53: 31.5 | D53: 0.5666666667 | E53: 0.3584988104 | F53: 0.2469906316 | G53: 0.2482515047 | H53: 0.5102260365
A54: 3/4" Tubing Port (0.62) | B54: 40 | C54: 36 | D54: 0.8666666667 | E54: 0.6111164232 | F54: 0.472720334 | G54: 0.4745141362 | H54: 0.6417422207
A55: 3/4" Tubing Port (0.62) | B55: 45 | C55: 40.5 | D55: 1.266666667 | E55: 0.8597861034 | F55: 0.6291511993 | G55: 0.6236211352 | H55: 0.8658492505
A56: 3/4" Tubing Port (0.62) | B56: 50 | C56: 45 | D56: 1.6 | E56: 1.066261979 | F56: 0.8281359604 | G56: 0.7728353188 | H56: 1.140435354
A57: 3/4" Tubing Port (0.62) | B57: 55 | C57: 49.5 | D57: 1.933333333 | E57: 1.601935936 | F57: 1.070868867 | G57: 1.015213799 | H57: 1.369742189
A58: 3/4" Tubing Port (0.62) | B58: 60 | C58: 54 | D58: 2.4 | E58: 1.867368552 | F58: 1.422182507 | G58: 1.41344457 | H58: 1.560358415
A59: 3/4" Tubing Port (0.62) | B59: 65 | C59: 58.5 | D59: 3.2 | E59: 2.575466 | F59: 1.807961483 | G59: 1.70111646 | H59: 1.741771815
A60: 3/4" Tubing Port (0.62) | B60: 70 | C60: 63 | D60: 4.133333333 | E60: 2.944798202 | F60: 2.211340284 | G60: 2.06702078 | H60: 2.023993952
A61: 3/4" Tubing Port (0.62) | B61: 75 | C61: 67.5 | D61: 5.533333333 | E61: 3.925415314 | F61: 2.650330846 | G61: 2.371545426 | H61: 2.204664342
A62: 3/4" Tubing Port (0.62) | B62: 80 | C62: 72 | D62: 7.2 | E62: 4.393592927 | F62: 3.313827483 | G62: 2.847187902 | H62: 2.430379901
A63: 3/4" Tubing Port (0.62) | B63: 85 | C63: 76.5 | D63: 9.4 | E63: 5.609814612 | F63: 4.174018194 | G63: 3.466024985 | H63: 2.681954044
A64: 3/4" Tubing Port (0.62) | B64: 90 | C64: 81 | D64: 12.2 | E64: 7.443598151 | F64: 4.986109589 | G64: 4.098980517 | H64: 2.860139652
A65: 3/4" Tubing Port (0.62) | B65: 95 | C65: 85.5 | D65: 16.26666667 | E65: 9.37775634 | F65: 6.213092785 | G65: 4.754729019 | H65: 2.992900236
A66: 3/4" Tubing Port (0.62) | B66: 100 | C66: 90 | D66: 25 | E66: 11.97979519 | F66: 8.4568 | G66: 5.004977915 | H66: 3.112058593
A67: Size | B67: Percent Open | C67: Degrees Open | D67: =A67 -> Size | E67: 60 V Upstream | F67: 45 V Upstream | G67: 30 V Upstream | H67: 1/8" Slot Upstream
A68: 3/4" Full Port | B68: 0 | C68: =B68*0.9 -> 0 | D68: 0 | E68: 0 | F68: 0 | G68: 0 | H68: 0
A69: 3/4" Full Port | B69: 5 | C69: 4.5 | D69: 0 | E69: 0 | F69: 0 | G69: 0 | H69: 0
A70: 3/4" Full Port | B70: 10 | C70: 9 | D70: 0 | E70: 0 | F70: 0 | G70: 0 | H70: 0
A71: 3/4" Full Port | B71: 15 | C71: 13.5 | D71: 0.0882 | E71: 0.06692284821 | F71: 0.05237440295 | G71: 0.02105668298 | H71: 0.1248083475
A72: 3/4" Full Port | B72: 20 | C72: 18 | D72: 0.3696 | E72: 0.1338456964 | F72: 0.1047488059 | G72: 0.06317004894 | H72: 0.2496166951
A73: 3/4" Full Port | B73: 25 | C73: 22.5 | D73: 0.63 | E73: 0.2007685446 | F73: 0.1571232088 | G73: 0.157944025 | H73: 0.3744250426
A74: 3/4" Full Port | B74: 30 | C74: 27 | D74: 0.714 | E74: 0.3108989151 | F74: 0.2094976118 | G74: 0.2369160375 | H74: 0.4992333901
A75: 3/4" Full Port | B75: 35 | C75: 31.5 | D75: 0.924 | E75: 0.5245982852 | F75: 0.3614261974 | G75: 0.3632712575 | H75: 0.6172089152
A76: 3/4" Full Port | B76: 40 | C76: 36 | D76: 1.47 | E76: 0.8942585537 | F76: 0.6917408633 | G76: 0.694365769 | H76: 0.7763010735
A77: 3/4" Full Port | B77: 45 | C77: 40.5 | D77: 2.142 | E77: 1.258141736 | F77: 0.9206491926 | G77: 0.9125569421 | H77: 1.047398287
A78: 3/4" Full Port | B78: 50 | C78: 45 | D78: 2.688 | E78: 1.560281903 | F78: 1.211827466 | G78: 1.13090496 | H78: 1.379558896
A79: 3/4" Full Port | B79: 55 | C79: 49.5 | D79: 3.234 | E79: 2.344144027 | F79: 1.567023251 | G79: 1.485582107 | H79: 1.656946196
A80: 3/4" Full Port | B80: 60 | C80: 54 | D80: 4.032 | E80: 2.73255674 | F80: 2.081107337 | G80: 2.068320944 | H80: 1.887530341
A81: 3/4" Full Port | B81: 65 | C81: 58.5 | D81: 5.46 | E81: 3.768729513 | F81: 2.645625219 | G81: 2.489276818 | H81: 2.106982034
A82: 3/4" Full Port | B82: 70 | C82: 63 | D82: 6.72 | E82: 4.309180512 | F82: 3.235897267 | G82: 3.024711729 | H82: 2.448379781
A83: 3/4" Full Port | B83: 75 | C83: 67.5 | D83: 8.4 | E83: 5.744136613 | F83: 3.878280699 | G83: 3.470328569 | H83: 2.666932672
A84: 3/4" Full Port | B84: 80 | C84: 72 | D84: 12.18 | E84: 6.429230024 | F84: 4.849188239 | G84: 4.166345461 | H84: 2.939975686
A85: 3/4" Full Port | B85: 85 | C85: 76.5 | D85: 15.96 | E85: 8.208950882 | F85: 6.107922046 | G85: 5.071901805 | H85: 3.244299247
A86: 3/4" Full Port | B86: 90 | C86: 81 | D86: 20.58 | E86: 10.89236202 | F86: 7.296271185 | G86: 5.998117952 | H86: 3.459846353
A87: 3/4" Full Port | B87: 95 | C87: 85.5 | D87: 27.3 | E87: 13.72265333 | F87: 9.091739572 | G87: 6.957687496 | H87: 3.620443834
A88: 3/4" Full Port | B88: 100 | C88: 90 | D88: 42 | E88: 17.53026741 | F88: 12.375 | G88: 7.323881574 | H88: 3.764587008
A89: Size | B89: Percent Open | C89: Degrees Open | D89: =A89 -> Size | E89: 60 V Upstream | F89: 45 V Upstream | G89: 30 V Upstream | H89: 3/16" Slot Upstream
A90: 1" Tubing Port (0.87) | B90: 0 | C90: =B90*0.9 -> 0 | D90: 0 | E90: 0 | F90: 0 | G90: 0 | H90: 0
A91: 1" Tubing Port (0.87) | B91: 5 | C91: 4.5 | D91: 0 | E91: 0 | F91: 0 | G91: 0 | H91: 0
A92: 1" Tubing Port (0.87) | B92: 10 | C92: 9 | D92: 0 | E92: 0 | F92: 0 | G92: 0 | H92: 0
A93: 1" Tubing Port (0.87) | B93: 15 | C93: 13.5 | D93: 0.126 | E93: 0.09005138455 | F93: 0.07047499661 | G93: 0.02833387262 | H93: 0.2171665247
A94: 1" Tubing Port (0.87) | B94: 20 | C94: 18 | D94: 0.528 | E94: 0.1801027691 | F94: 0.1409499932 | G94: 0.08500161785 | H94: 0.4343330494
A95: 1" Tubing Port (0.87) | B95: 25 | C95: 22.5 | D95: 0.9 | E95: 0.2701541537 | F95: 0.2114249898 | G95: 0.2125294801 | H95: 0.6514995741
A96: 1" Tubing Port (0.87) | B96: 30 | C96: 27 | D96: 1.02 | E96: 0.4183455801 | F96: 0.2818999864 | G96: 0.3187942201 | H96: 0.8686660988
A97: 1" Tubing Port (0.87) | B97: 35 | C97: 31.5 | D97: 1.32 | E97: 0.7058994526 | F97: 0.4863350912 | G97: 0.4888178041 | H97: 1.073943512
A98: 1" Tubing Port (0.87) | B98: 40 | C98: 36 | D98: 2.1 | E98: 1.20331431 | F98: 0.9308065056 | G98: 0.9343385788 | H98: 1.350763868
A99: 1" Tubing Port (0.87) | B99: 45 | C99: 40.5 | D99: 3.06 | E99: 1.692955519 | F99: 1.238825554 | G99: 1.227936621 | H99: 1.822473019
A100: 1" Tubing Port (0.87) | B100: 50 | C100: 45 | D100: 3.84 | E100: 2.099515328 | F100: 1.630635038 | G100: 1.521745715 | H100: 2.400432479
A101: 1" Tubing Port (0.87) | B101: 55 | C101: 49.5 | D101: 4.62 | E101: 3.154280203 | F101: 2.108586487 | G101: 1.998999283 | H101: 2.883086381
A102: 1" Tubing Port (0.87) | B102: 60 | C102: 54 | D102: 5.76 | E102: 3.676928349 | F102: 2.800338033 | G102: 2.783132662 | H102: 3.284302794
A103: 1" Tubing Port (0.87) | B103: 65 | C103: 58.5 | D103: 7.8 | E103: 5.071202433 | F103: 3.559953295 | G103: 3.349570886 | H103: 3.666148739
A104: 1" Tubing Port (0.87) | B104: 70 | C104: 63 | D104: 9.6 | E104: 5.798433297 | F104: 4.354223363 | G104: 4.070052103 | H104: 4.260180818
A105: 1" Tubing Port (0.87) | B105: 75 | C105: 67.5 | D105: 12 | E105: 7.729310226 | F105: 5.218614509 | G105: 4.669674123 | H105: 4.640462849
A106: 1" Tubing Port (0.87) | B106: 80 | C106: 72 | D106: 17.4 | E106: 8.651171921 | F106: 6.525067695 | G106: 5.606234452 | H106: 5.115557694
A107: 1" Tubing Port (0.87) | B107: 85 | C107: 76.5 | D107: 22.8 | E107: 11.04596431 | F107: 8.218819905 | G107: 6.824751069 | H107: 5.64508069
A108: 1" Tubing Port (0.87) | B108: 90 | C108: 81 | D108: 29.4 | E108: 14.65676233 | F108: 9.817862507 | G108: 8.071067516 | H108: 6.020132655
A109: 1" Tubing Port (0.87) | B109: 95 | C109: 85.5 | D109: 39 | E109: 18.46520233 | F109: 12.23384477 | G109: 9.362264294 | H109: 6.299572271
A110: 1" Tubing Port (0.87) | B110: 100 | C110: 90 | D110: 60 | E110: 23.58872783 | F110: 16.6518 | G110: 9.855015047 | H110: 6.550381394
A111: Size | B111: Percent Open | C111: Degrees Open | D111: =A111 -> Size | E111: 60 V Upstream | F111: 45 V Upstream | G111: 30 V Upstream | H111: 3/16" Slot Upstream
A112: 1" Full Port | B112: 0 | C112: =B112*0.9 -> 0 | D112: 0 | E112: 0 | F112: 0 | G112: 0 | H112: 0
A113: 1" Full Port | B113: 5 | C113: 4.5 | D113: 0 | E113: 0 | F113: 0 | G113: 0 | H113: 0
A114: 1" Full Port | B114: 10 | C114: 9 | D114: 0 | E114: 0 | F114: 0 | G114: 0 | H114: 0
A115: 1" Full Port | B115: 15 | C115: 13.5 | D115: 0.1533 | E115: 0.1189739524 | F115: 0.09311004969 | G115: 0.03743410307 | H115: 0.2496166951
A116: 1" Full Port | B116: 20 | C116: 18 | D116: 0.6424 | E116: 0.2379479048 | F116: 0.1862200994 | G116: 0.1123023092 | H116: 0.4992333901
A117: 1" Full Port | B117: 25 | C117: 22.5 | D117: 1.095 | E117: 0.3569218571 | F117: 0.2793301491 | G117: 0.2807893778 | H117: 0.7488500852
A118: 1" Full Port | B118: 30 | C118: 27 | D118: 1.241 | E118: 0.5527091823 | F118: 0.3724401987 | G118: 0.4211840667 | H118: 0.9984667802
A119: 1" Full Port | B119: 35 | C119: 31.5 | D119: 1.606 | E119: 0.9326191737 | F119: 0.642535462 | G119: 0.6458155689 | H119: 1.23441783
A120: 1" Full Port | B120: 40 | C120: 36 | D120: 2.555 | E120: 1.589792984 | F120: 1.229761535 | G120: 1.234428034 | H120: 1.552602147
A121: 1" Full Port | B121: 45 | C121: 40.5 | D121: 3.723 | E121: 2.236696419 | F121: 1.636709676 | G121: 1.622323453 | H121: 2.094796574
A122: 1" Full Port | B122: 50 | C122: 45 | D122: 4.672 | E122: 2.773834494 | F122: 2.154359939 | G122: 2.010497708 | H122: 2.759117792
A123: 1" Full Port | B123: 55 | C123: 49.5 | D123: 5.621 | E123: 4.167367159 | F123: 2.785819114 | G123: 2.641034857 | H123: 3.313892392
A124: 1" Full Port | B124: 60 | C124: 54 | D124: 7.008 | E124: 4.857878649 | F124: 3.699746377 | G124: 3.677015011 | H124: 3.775060683
A125: 1" Full Port | B125: 65 | C125: 58.5 | D125: 9.49 | E125: 6.699963579 | F125: 4.703333723 | G125: 4.425381009 | H125: 4.213964068
A126: 1" Full Port | B126: 70 | C126: 63 | D126: 11.68 | E126: 7.660765354 | F126: 5.752706253 | G126: 5.377265297 | H126: 4.896759561
A127: 1" Full Port | B127: 75 | C127: 67.5 | D127: 14.6 | E127: 10.21179842 | F127: 6.894721243 | G127: 6.169473012 | H127: 5.333865344
A128: 1" Full Port | B128: 80 | C128: 72 | D128: 21.17 | E128: 11.42974227 | F128: 8.620779092 | G128: 7.406836375 | H128: 5.879951373
A129: 1" Full Port | B129: 85 | C129: 76.5 | D129: 27.74 | E129: 14.59369046 | F129: 10.85852808 | G129: 9.01671432 | H129: 6.488598494
A130: 1" Full Port | B130: 90 | C130: 81 | D130: 35.77 | E130: 19.36419914 | F130: 12.97114877 | G130: 10.6633208 | H130: 6.919692707
A131: 1" Full Port | B131: 95 | C131: 85.5 | D131: 47.45 | E131: 24.39582815 | F131: 16.16309257 | G131: 12.36922221 | H131: 7.240887667
A132: 1" Full Port | B132: 100 | C132: 90 | D132: 73 | E132: 31.16491984 | F132: 22 | G132: 13.02023391 | H132: 7.529174016
A133: Size | B133: Percent Open | C133: Degrees Open | D133: =A133 -> Size | E133: 60 V Upstream | F133: 45 V Upstream | G133: 30 V Upstream | H133: 3/8" Slot Upstream
A134: 1-1/2" Tubing Port (1.37) | B134: 0 | C134: =B134*0.9 -> 0 | D134: 0 | E134: 0 | F134: 0 | G134: 0 | H134: 0
A135: 1-1/2" Tubing Port (1.37) | B135: 5 | C135: 4.5 | D135: 0 | E135: 0 | F135: 0 | G135: 0 | H135: 0
A136: 1-1/2" Tubing Port (1.37) | B136: 10 | C136: 9 | D136: 0 | E136: 0 | F136: 0 | G136: 0 | H136: 0
A137: 1-1/2" Tubing Port (1.37) | B137: 15 | C137: 13.5 | D137: 0.3547341 | E137: 0.1069833 | F137: 0.1632903 | G137: 0.1614134 | H137: 0.471965
A138: 1-1/2" Tubing Port (1.37) | B138: 20 | C138: 18 | D138: 1.53436575 | E138: 0.46453275 | F138: 0.43637925 | G138: 0.55837775 | H138: 1.2604
A139: 1-1/2" Tubing Port (1.37) | B139: 25 | C139: 22.5 | D139: 2.69053615 | E139: 0.807067 | F139: 0.619377 | G139: 1.11206325 | H139: 2.1509
A140: 1-1/2" Tubing Port (1.37) | B140: 30 | C140: 27 | D140: 2.97957875 | E140: 1.3232145 | F140: 0.975988 | G140: 1.58128825 | H140: 3.0277
A141: 1-1/2" Tubing Port (1.37) | B141: 35 | C141: 31.5 | D141: 3.96495125 | E141: 1.9801295 | F141: 1.7173635 | G141: 2.0176675 | H141: 4.06205
A142: 1-1/2" Tubing Port (1.37) | B142: 40 | C142: 36 | D142: 6.21723125 | E142: 2.477508 | F142: 2.50096925 | G142: 2.62766 | H142: 5.3978
A143: 1-1/2" Tubing Port (1.37) | B143: 45 | C143: 40.5 | D143: 9.140503 | E143: 3.91802875 | F143: 3.31742075 | G143: 3.247037 | H143: 6.80205
A144: 1-1/2" Tubing Port (1.37) | B144: 50 | C144: 45 | D144: 11.0643255 | E144: 5.649469 | F144: 4.44356075 | G144: 4.6453275 | H144: 7.9049
A145: 1-1/2" Tubing Port (1.37) | B145: 55 | C145: 49.5 | D145: 13.607525 | E145: 6.3345375 | F145: 6.1468475 | G145: 5.1145525 | H145: 9.2475
A146: 1-1/2" Tubing Port (1.37) | B146: 60 | C146: 54 | D146: 17.11263575 | E146: 7.82198075 | F146: 7.69529 | G146: 6.3345375 | H146: 9.59
A147: 1-1/2" Tubing Port (1.37) | B147: 65 | C147: 58.5 | D147: 22.391417 | E147: 9.666035 | F147: 9.4314225 | G147: 7.7422125 | H147: 10.82985
A148: 1-1/2" Tubing Port (1.37) | B148: 70 | C148: 63 | D148: 28.8573375 | E148: 12.5283075 | F148: 11.44909 | G148: 9.8068025 | H148: 11.74775
A149: 1-1/2" Tubing Port (1.37) | B149: 75 | C149: 67.5 | D149: 38.58437175 | E149: 17.5020925 | F149: 13.982905 | G149: 12.01216 | H149: 12.7684
A150: 1-1/2" Tubing Port (1.37) | B150: 80 | C150: 72 | D150: 50.89683575 | E150: 23.555095 | F150: 17.2205575 | G150: 14.3113625 | H150: 14.385
A151: 1-1/2" Tubing Port (1.37) | B151: 85 | C151: 76.5 | D151: 66.02464975 | E151: 28.84326075 | F151: 21.302815 | G151: 17.549015 | H151: 16.44
A152: 1-1/2" Tubing Port (1.37) | B152: 90 | C152: 81 | D152: 85.868175 | E152: 36.59955 | F152: 26.08891 | G152: 21.8189625 | H152: 18.0155
A153: 1-1/2" Tubing Port (1.37) | B153: 95 | C153: 85.5 | D153: 114.4909 | E153: 48.330175 | F153: 30.96885 | G153: 25.807375 | H153: 18.66625
A154: 1-1/2" Tubing Port (1.37) | B154: 100 | C154: 90 | D154: 175.959375 | E154: 60.530025 | F154: 42.23025 | G154: 30.96885 | H154: 19.4129
A155: Size | B155: Percent Open | C155: Degrees Open | D155: =A155 -> Size | E155: 60 V Upstream | F155: 45 V Upstream | G155: 30 V Upstream | H155: 3/8" Slot Upstream
A156: 1-1/2" Full Port | B156: 0 | C156: =B156*0.9 -> 0 | D156: 0 | E156: 0 | F156: 0 | G156: 0 | H156: 0
A157: 1-1/2" Full Port | B157: 5 | C157: 4.5 | D157: 0 | E157: 0 | F157: 0 | G157: 0 | H157: 0
A158: 1-1/2" Full Port | B158: 10 | C158: 9 | D158: 0 | E158: 0 | F158: 0 | G158: 0 | H158: 0
A159: 1-1/2" Full Port | B159: 15 | C159: 13.5 | D159: 0.42525 | E159: 0.12825 | F159: 0.19575 | G159: 0.1935 | H159: 0.51675
A160: 1-1/2" Full Port | B160: 20 | C160: 18 | D160: 1.839375 | E160: 0.556875 | F160: 0.523125 | G160: 0.669375 | H160: 1.38
A161: 1-1/2" Full Port | B161: 25 | C161: 22.5 | D161: 3.225375 | E161: 0.9675 | F161: 0.7425 | G161: 1.333125 | H161: 2.355
A162: 1-1/2" Full Port | B162: 30 | C162: 27 | D162: 3.571875 | E162: 1.58625 | F162: 1.17 | G162: 1.895625 | H162: 3.315
A163: 1-1/2" Full Port | B163: 35 | C163: 31.5 | D163: 4.753125 | E163: 2.37375 | F163: 2.05875 | G163: 2.41875 | H163: 4.4475
A164: 1-1/2" Full Port | B164: 40 | C164: 36 | D164: 7.453125 | E164: 2.97 | F164: 2.998125 | G164: 3.15 | H164: 5.91
A165: 1-1/2" Full Port | B165: 45 | C165: 40.5 | D165: 10.9575 | E165: 4.696875 | F165: 3.976875 | G165: 3.8925 | H165: 7.4475
A166: 1-1/2" Full Port | B166: 50 | C166: 45 | D166: 13.26375 | E166: 6.7725 | F166: 5.326875 | G166: 5.56875 | H166: 8.655
A167: 1-1/2" Full Port | B167: 55 | C167: 49.5 | D167: 16.3125 | E167: 7.59375 | F167: 7.36875 | G167: 6.13125 | H167: 10.125
A168: 1-1/2" Full Port | B168: 60 | C168: 54 | D168: 20.514375 | E168: 9.376875 | F168: 9.225 | G168: 7.59375 | H168: 10.5
A169: 1-1/2" Full Port | B169: 65 | C169: 58.5 | D169: 26.8425 | E169: 11.5875 | F169: 11.30625 | G169: 9.28125 | H169: 11.8575
A170: 1-1/2" Full Port | B170: 70 | C170: 63 | D170: 34.59375 | E170: 15.01875 | F170: 13.725 | G170: 11.75625 | H170: 12.8625
A171: 1-1/2" Full Port | B171: 75 | C171: 67.5 | D171: 46.254375 | E171: 20.98125 | F171: 16.7625 | G171: 14.4 | H171: 13.98
A172: 1-1/2" Full Port | B172: 80 | C172: 72 | D172: 61.014375 | E172: 28.2375 | F172: 20.64375 | G172: 17.15625 | H172: 15.75
A173: 1-1/2" Full Port | B173: 85 | C173: 76.5 | D173: 79.149375 | E173: 34.576875 | F173: 25.5375 | G173: 21.0375 | H173: 18
A174: 1-1/2" Full Port | B174: 90 | C174: 81 | D174: 102.9375 | E174: 43.875 | F174: 31.275 | G174: 26.15625 | H174: 19.725
A175: 1-1/2" Full Port | B175: 95 | C175: 85.5 | D175: 137.25 | E175: 57.9375 | F175: 37.125 | G175: 30.9375 | H175: 20.4375
A176: 1-1/2" Full Port | B176: 100 | C176: 90 | D176: 210.9375 | E176: 72.5625 | F176: 50.625 | G176: 37.125 | H176: 21.255
A177: Size | B177: Percent Open | C177: Degrees Open | D177: =A177 -> Size | E177: 60 V Upstream | F177: 45 V Upstream | G177: 30 V Upstream | H177: 3/8" Slot Upstream
A178: 2" Tubing Port (1.87) | B178: 0 | C178: =B178*0.9 -> 0 | D178: 0 | E178: 0 | F178: 0 | G178: 0 | H178: 0
A179: 2" Tubing Port (1.87) | B179: 5 | C179: 4.5 | D179: 0 | E179: 0 | F179: 0 | G179: 0 | H179: 0
A180: 2" Tubing Port (1.87) | B180: 10 | C180: 9 | D180: 0 | E180: 0 | F180: 0 | G180: 0 | H180: 0
A181: 2" Tubing Port (1.87) | B181: 15 | C181: 13.5 | D181: 0.6609141 | E181: 0.1993233 | F181: 0.3042303 | G181: 0.3007334 | H181: 0.644215
A182: 2" Tubing Port (1.87) | B182: 20 | C182: 18 | D182: 2.85871575 | E182: 0.86548275 | F182: 0.81302925 | G182: 1.04032775 | H182: 1.7204
A183: 2" Tubing Port (1.87) | B183: 25 | C183: 22.5 | D183: 5.01280615 | E183: 1.503667 | F183: 1.153977 | G183: 2.07191325 | H183: 2.9359
A184: 2" Tubing Port (1.87) | B184: 30 | C184: 27 | D184: 5.55132875 | E184: 2.4653145 | F184: 1.818388 | G184: 2.94613825 | H184: 4.1327
A185: 2" Tubing Port (1.87) | B185: 35 | C185: 31.5 | D185: 7.38720125 | E185: 3.6892295 | F185: 3.1996635 | G185: 3.7591675 | H185: 5.54455
A186: 2" Tubing Port (1.87) | B186: 40 | C186: 36 | D186: 11.58348125 | E186: 4.615908 | F186: 4.65961925 | G186: 4.89566 | H186: 7.3678
A187: 2" Tubing Port (1.87) | B187: 45 | C187: 40.5 | D187: 17.029903 | E187: 7.29977875 | F187: 6.18077075 | G187: 6.049637 | H187: 9.28455
A188: 2" Tubing Port (1.87) | B188: 50 | C188: 45 | D188: 20.6142255 | E188: 10.525669 | F188: 8.27891075 | G188: 8.6548275 | H188: 10.7899
A189: 2" Tubing Port (1.87) | B189: 55 | C189: 49.5 | D189: 25.3700095 | E189: 11.8020375 | F189: 11.4523475 | G189: 9.5290525 | H189: 12.6225
A190: 2" Tubing Port (1.87) | B190: 60 | C190: 54 | D190: 31.88298575 | E190: 14.57333075 | F190: 14.33729 | G190: 11.8020375 | H190: 13.09
A191: 2" Tubing Port (1.87) | B191: 65 | C191: 58.5 | D191: 41.718017 | E191: 18.009035 | F191: 17.5719225 | G191: 14.4247125 | H191: 14.78235
A192: 2" Tubing Port (1.87) | B192: 70 | C192: 63 | D192: 53.7648375 | E192: 23.3418075 | F192: 21.33109 | G192: 18.2713025 | H192: 16.03525
A193: 2" Tubing Port (1.87) | B193: 75 | C193: 67.5 | D193: 71.88752175 | E193: 32.6085925 | F193: 26.051905 | G193: 22.38016 | H193: 17.4284
A194: 2" Tubing Port (1.87) | B194: 80 | C194: 72 | D194: 94.82718575 | E194: 43.886095 | F194: 32.0840575 | G194: 26.6638625 | H194: 19.635
A195: 2" Tubing Port (1.87) | B195: 85 | C195: 76.5 | D195: 123.0121998 | E195: 53.73861075 | F195: 39.689815 | G195: 32.696015 | H195: 22.44
A196: 2" Tubing Port (1.87) | B196: 90 | C196: 81 | D196: 159.983175 | E196: 68.18955 | F196: 48.60691 | G196: 40.6514625 | H196: 24.5905
A197: 2" Tubing Port (1.87) | B197: 95 | C197: 85.5 | D197: 213.3109 | E197: 90.045175 | F197: 57.69885 | G197: 48.082375 | H197: 25.47875
A198: 2" Tubing Port (1.87) | B198: 100 | C198: 90 | D198: 327.834375 | E198: 112.775025 | F198: 78.68025 | G198: 57.69885 | H198: 26.4979
A199: Size | B199: Percent Open | C199: Degrees Open | D199: =A199 -> Size | E199: 60 V Upstream | F199: 45 V Upstream | G199: 30 V Upstream | H199: 3/8" Slot Upstream
A200: 2" Full Port | B200: 0 | C200: =B200*0.9 -> 0 | D200: 0 | E200: 0 | F200: 0 | G200: 0 | H200: 0
... 218 more rows

Sheet DATA (hidden)
A1: Compound | B1: Pc Critical Pressure (psia) | C1: Specific gravity | D1: Fluid Type | F1: Compound | G1: Pc Critical Pressure (psia) | H1: Gas Property Factor - SLg | I1: Specific gravity | J1: Fluid Type | L1: Saturated Steam
A2: ACETIC ACID [S.G. 1.052] | B2: 840 | C2: 1.052 | D2: LIQUID | F2: ACETYLENE [S.G. 0.903] | G2: 911 | H2: -0.5 | I2: 0.9 | J2: GAS | L2: PSI | M2: °F
A3: ACETONE [S.G. 0.787] | B3: 691 | C3: 0.787 | D3: LIQUID | F3: AIR [S.G. 1.0000] | G3: 547 | H3: 0 | I3: 1 | J3: GAS | L3: 0.116 | M3: 38.84
A4: ACETYLENE, LIQUID [S.G. 0.900] | B4: 911 | C4: 0.9 | D4: LIQUID | F4: AMMONIA [S.G. 0.589] | G4: 1638 | H4: 1.5 | I4: 0.59 | J4: GAS | L4: 0.29 | M4: 63.5
A5: ALCOHOL [S.G. 0.802] | B5: 956 | C5: 0.802 | D5: LIQUID | F5: ARGON [S.G. 1.374] | G5: 705 | I5: 1.38 | J5: GAS | L5: 0.725 | M5: 91.22
A6: ALCOHOL, ETHYL (ETHANOL) [S.G. 0.787] | B6: 914 | C6: 0.787 | D6: LIQUID | F6: CARBON DIOXIDE [S.G. 1.531] | G6: 1072 | H6: -3 | I6: 1.5189 | J6: GAS | L6: 1.45 | M6: 114.44
A7: ALCOHOL, METHYL (METHANOL) [S.G. 0.791] | B7: 1168 | C7: 0.791 | D7: LIQUID | F7: CARBON MONOXIDE [S.G. 0.969] | G7: 514 | H7: 0 | I7: 0.9667 | J7: GAS | L7: 2.9 | M7: 140.18
A8: ALCOHOL, PROPYL [S.G. 0.802] | B8: 750 | C8: 0.802 | D8: LIQUID | F8: ETHANE [S.G. 2.487] | G8: 717 | H8: -2 | I8: 1.0378 | J8: GAS | L8: 4.06 | M8: 153.5
A9: AMMONIA (AQUA) [S.G. 0.826] | B9: 1636 | C9: 0.826 | D9: LIQUID | F9: ETHYLENE [S.G. 1.047] | G9: 731 | H9: -1.5 | I9: 0.9784 | J9: GAS | L9: 5.075 | M9: 162.86
A10: ANILINE [S.G. 1.022] | B10: 824 | C10: 1.022 | D10: LIQUID | F10: HELIUM [S.G. 0.144] | G10: 33.2 | H10: -9 | I10: 0.138 | J10: GAS | L10: 6.525 | M10: 173.66
A11: BENZENE [S.G. 0.876] | B11: 701 | C11: 0.876 | D11: LIQUID | F11: HYDROGEN [S.G. 0.065] | G11: 188 | H11: -9 | I11: 0.0696 | J11: GAS | L11: 7.975 | M11: 182.66
A12: BENZOL [S.G. 0.877] | B12: 735 | C12: 0.877 | D12: LIQUID | F12: METHANE [S.G. 0.550] | G12: 673 | H12: 2 | I12: 0.5537 | J12: GAS | L12: 9.425 | M12: 190.4
A13: BROMINE [S.G. 3.12] | B13: 1494 | C13: 3.12 | D13: LIQUID | F13: NITROGEN [S.G. 0.969] | G13: 492 | H13: 0 | I13: 0.9669 | J13: GAS | L13: 10.875 | M13: 197.24
A14: BUTANE [S.G. 0.601] | B14: 529 | C14: 0.601 | D14: LIQUID | F14: OXYGEN [S.G. 1.099] | G14: 730 | H14: -0.5 | I14: 1.1044 | J14: GAS | L14: 12.325 | M14: 203.36
A15: CARBON DISULFIDE [S.G. 1.265] | B15: 1116 | C15: 1.265 | D15: LIQUID | F15: PROPANE [S.G. 1.531] | G15: 617 | H15: -4.5 | I15: 1.5219 | J15: GAS | L15: 13.775 | M15: 208.76
A16: CARBON TETRACHLORIDE [S.G. 1.589] | B16: 661 | C16: 1.589 | D16: LIQUID | L16: 14.5 | M16: 211.28
A17: CARENE [0.860] | B17: 428 | C17: 0.86 | D17: LIQUID | L17: 14.69285 | M17: 212
A18: CHLORINE [S.G. 1.564] | B18: 1118 | C18: 1.564 | D18: LIQUID | L18: 15.95 | M18: 216.14
A19: CHLOROFORM [S.G. 1.469] | B19: 787 | C19: 1.469 | D19: LIQUID | L19: 18.85 | M19: 224.78
A20: COCONUT OIL [S.G. 0.925] | B20: 91.3 | C20: 0.925 | D20: LIQUID | L20: 21.75 | M20: 232.52
A21: CRESOL [S.G. 1.027] | B21: 668 | C21: 1.027 | D21: LIQUID | L21: 24.65 | M21: 239.36
A22: CRUDE OIL, CALIFORNIA [S.G. 0.918] | B22: 210 | C22: 0.918 | D22: LIQUID | L22: 27.55 | M22: 245.48
A23: CRUDE OIL, MEXICAN [S.G. 0.976] | B23: 210 | C23: 0.976 | D23: LIQUID | L23: 31.9 | M23: 253.94
A24: CRUDE OIL, TEXAS [S.G. 0.876] | B24: 210 | C24: 0.876 | D24: LIQUID | L24: 37.7 | M24: 263.66
A25: CUMENE [S.G. 0.862] | B25: 465.5 | C25: 0.862 | D25: LIQUID | L25: 46.4 | M25: 276.44
A26: DECANE [S.G. 0.728] | B26: 320 | C26: 0.728 | D26: LIQUID | L26: 52.2 | M26: 283.82
A27: DODECANE [S.G. 0.757] | B27: 280 | C27: 0.757 | D27: LIQUID | L27: 58 | M27: 289.58
A28: ETHANE [S.G. 0.572] | B28: 717 | C28: 0.572 | D28: LIQUID | L28: 63.8 | M28: 296.78
A29: ETHANOL [S.G. 0.79] | B29: 914 | C29: 0.79 | D29: LIQUID | L29: 69.6 | M29: 302.54
A30: ETHER [S.G. 0.07272] | B30: 544 | C30: 0.07272 | D30: LIQUID | L30: 79.75 | M30: 311.9
A31: ETHER [S.G. 0.716] | B31: 537 | C31: 0.716 | D31: LIQUID | L31: 87 | M31: 317.84
A32: ETHYLAMINE [S.G. 0.683] | B32: 832 | C32: 0.683 | D32: LIQUID | L32: 94.25 | M32: 323.6
A33: ETHYLENE GLYCOL [S.G. 1.100] | B33: 729 | C33: 1.1 | D33: LIQUID | L33: 101.5 | M33: 329
A34: FLUORINE (FREON) REFRIGERANT R-11 [S.G. 1.480] | B34: 635 | C34: 1.48 | D34: LIQUID | L34: 108.75 | M34: 334.04
A35: FLUORINE [S.G. 1.108] | B35: 757 | C35: 1.108 | D35: LIQUID | L35: 116 | M35: 338.72
A36: FLUORINE REFRIGERANT R-12 [S.G. 1.315] | B36: 582 | C36: 1.315 | D36: LIQUID | L36: 123.25 | M36: 343.22
A37: FLUORINE REFRIGERANT R-22 [S.G. 1.197] | B37: 731 | C37: 1.197 | D37: LIQUID | L37: 130.5 | M37: 347.72
A38: FORMALDEHYDE [S.G. 0.815] | B38: 987 | C38: 0.815 | D38: LIQUID | L38: 137.75 | M38: 351.86
A39: FURFORAL [S.G. 1.159] | B39: 813 | C39: 1.159 | D39: LIQUID | L39: 145 | M39: 355.82
A40: GLYCERIN [S.G. 1.263] | B40: 1103 | C40: 1.263 | D40: LIQUID | L40: 152.25 | M40: 359.6
A41: GLYCEROL [S.G. 1.129] | B41: 640 | C41: 1.129 | D41: LIQUID | L41: 166.75 | M41: 366.8
A42: GLYCOL (ETHYLENE) [S.G. 1.100] | B42: 945 | C42: 1.1 | D42: LIQUID | L42: 181.25 | M42: 373.64
A43: GLYCOL (PROPYLENE) [S.G. 1.306] | B43: 885 | C43: 1.036 | D43: LIQUID | L43: 188.5 | M43: 376.88
A44: HEPTANE [S.G. 0.681] | B44: 394 | C44: 0.681 | D44: LIQUID | L44: 217.5 | M44: 388.94
A45: HEXANE [S.G. 0.657] | B45: 439 | C45: 0.657 | D45: LIQUID | L45: 232 | M45: 394.52
A46: HEXANOL [S.G. 0.813] | B46: 496 | C46: 0.813 | D46: LIQUID | L46: 261 | M46: 404.78
A47: HEXENE [S.G. 0.673] | B47: 460 | C47: 0.673 | D47: LIQUID | L47: 290 | M47: 414.32
A48: HYDRAZINE [S.G. 0.797] | B48: 2130 | C48: 0.797 | D48: LIQUID | L48: 304.5 | M48: 418.82
A49: KEROSENE [S.G. 0.820] | B49: 392 | C49: 0.82 | D49: LIQUID | L49: 333.5 | M49: 427.28
A50: KRYPTON [S.G. 2.818] | B50: 798 | C50: 2.818 | D50: LIQUID | L50: 348 | M50: 431.24
A51: LIQUID NITROGEN [S.G. 0.807] | B51: 493 | C51: 0.807 | D51: LIQUID
A52: LIQUIFIED NATURAL GAS (LNG) [S.G. 0.43] | B52: 673 | C52: 0.43 | D52: LIQUID
A53: LP GAS (PROPANE) [S.G. 1.500] | B53: 613 | C53: 1.5 | D53: LIQUID | L53: 377 | M53: 438.8
A54: MERCURY [S.G. 13.633] | B54: 25237 | C54: 13.633 | D54: LIQUID | L54: 391.5 | M54: 442.58
A55: METHANE [S.G. 0.466] | B55: 673 | C55: 0.466 | D55: LIQUID | L55: 420.5 | M55: 449.6
A56: METHANOL [S.G. 0.79] | B56: 1173 | C56: 0.79 | D56: LIQUID | L56: 435 | M56: 452.84
A57: MOLASSES B [S.G. 1.445] | B57: 100000 | C57: 1.445 | D57: LIQUID | L57: 464 | M57: 459.32
A58: NAPTHALENE [S.G. 0.963] | B58: 558 | C58: 0.963 | D58: LIQUID | L58: 493 | M58: 465.62
A59: NEON [S.G. 0.697] | B59: 400 | C59: 0.697 | D59: LIQUID | L59: 522 | M59: 471.56
A60: NONANOL [S.G. 0.823] | B60: 367 | C60: 0.823 | D60: LIQUID | L60: 551 | M60: 477.14
A61: OCTANE [S.G. 0.701] | B61: 332 | C61: 0.701 | D61: LIQUID | L61: 580 | M61: 482.54
A62: OLIVE OIL [S.G. 0.911] | B62: 107 | C62: 0.911 | D62: LIQUID
A63: OXYGEN [S.G. 1.140] | B63: 730 | C63: 1.14 | D63: LIQUID
A64: PALM OIL [S.G. 0.924] | B64: 87.2 | C64: 0.924 | D64: LIQUID
A65: PALMITIC ACID [S.G. 0.853] | B65: 213 | C65: 0.853 | D65: LIQUID
A66: PENTANE [S.G. 0.755] | B66: 485 | C66: 0.755 | D66: LIQUID
A67: PHENOL [S.G. 1.075] | B67: 889 | C67: 1.075 | D67: LIQUID
A68: PHOSGENE [S.G. 1.381] | B68: 823 | C68: 1.381 | D68: LIQUID
A69: PINENE [S.G. 0.858] | B69: 415 | C69: 0.858 | D69: LIQUID
A70: PROPANE [S.G. 0.540] | B70: 617 | C70: 0.54 | D70: LIQUID
A71: PROPYLENE [S.G. 0.516] | B71: 661 | C71: 0.516 | D71: LIQUID
A72: PROPYLENE GLYCOL [S.G. 1.036] | B72: 885 | C72: 1.036 | D72: LIQUID
A73: PYRIDINE [S.G. 0.968] | B73: 882 | C73: 0.968 | D73: LIQUID
A74: REFRIGERANT 12 [S.G. 1.315] | B74: 582 | C74: 1.315 | D74: LIQUID
A75: REFRIGERANT 22 [S.G. 1.197] | B75: 713 | C75: 1.197 | D75: LIQUID
A76: SAE 10 OIL [S.G. 0.908] | B76: 100000 | C76: 0.9075 | D76: LIQUID
A77: SAE 30 OIL [S.G. 0.908] | B77: 100000 | C77: 0.9075 | D77: LIQUID
A78: SAE 50 OIL [S.G. 0.908] | B78: 100000 | C78: 0.9075 | D78: LIQUID
A79: SAE 70 OIL [S.G. 0.908] | B79: 100000 | C79: 0.9075 | D79: LIQUID
A80: SEA WATER [S.G. 1.028] | B80: 3200 | C80: 1.028 | D80: LIQUID
A81: SILANE [S.G. 0.719] | B81: 702 | C81: 0.719 | D81: LIQUID
A82: STEARIC ACID [S.G. 0.941] | B82: 192 | C82: 0.941 | D82: LIQUID
A83: STYRENE [S.G. 0.906] | B83: 580 | C83: 0.906 | D83: LIQUID
A84: SULFURIC ACID [S.G. 1.84] | B84: 667 | C84: 1.84 | D84: LIQUID
A85: TERPINENE [S.G. 0.850] | B85: 406 | C85: 0.85 | D85: LIQUID
A86: TOLUENE [S.G. 0.865] | B86: 611 | C86: 0.865 | D86: LIQUID
A87: TURPENTINE [S.G. 0.871] | B87: 304 | C87: 0.871 | D87: LIQUID
A88: VEGETABLE OIL [S.G. 0.918] | B88: 107 | C88: 0.918 | D88: LIQUID
A89: WATER [S.G. 1.000] | B89: 3206 | C89: 1 | D89: LIQUID
A90: WATER, PURE [S.G. 1.000] | B90: 3156 | C90: 1 | D90: LIQUID
A91: WATER, SEA [S.G. 1.025] | B91: 4133 | C91: 1.025 | D91: LIQUID
A94: GAS | B94: S.G. | C94: DENSITY
A95: ACETYLENE [S.G. 0.903] | B95: =C95/0.0764 -> 0.9031413613 | C95: 0.069
A96: AIR [S.G. 1.0000] | B96: 1 | C96: 0.0764
A97: AMMONIA [S.G. 0.589] | B97: 0.5890052356 | C97: 0.045
A98: ARGON [S.G. 1.374] | B98: 1.37434555 | C98: 0.105
A99: BUTANE [S.G. 2.016] | B99: 2.015706806 | C99: 0.154
A100: CARBON DIOXIDE [S.G. 1.531] | B100: 1.531413613 | C100: 0.117
A101: CARBON MONOXIDE [S.G. 0.969] | B101: 0.9685863874 | C101: 0.074
A102: ETHANE [S.G. 2.487] | B102: 2.486910995 | C102: 0.19
A103: ETHYLENE [S.G. 1.047] | B103: 1.047120419 | C103: 0.08
A104: HELIUM [S.G. 0.144] | B104: 0.1439790576 | C104: 0.011
A105: HYDROGEN [S.G. 0.065] | B105: 0.06544502618 | C105: 0.005
A106: METHANE [S.G. 0.550] | B106: 0.5497382199 | C106: 0.042
A107: NITROGEN [S.G. 0.969] | B107: 0.9685863874 | C107: 0.074
A108: OXYGEN [S.G. 1.099] | B108: 1.09947644 | C108: 0.084
A109: PROPANE [S.G. 1.531] | B109: 1.531413613 | C109: 0.117
A110: REFRIGERANT 12 [S.G. 4.188] | B110: 4.188481675 | C110: 0.32
A111: REFRIGERANT 22 [S.G. 2.984] | B111: 2.984293194 | C111: 0.228
A113: This table to be deleted once dependency has been eliminated
